Cogmind - Beta 17 @@@ ROGUE MODE // 2026.06.30 @ 23:24:45 Player: Cracklepappy Result: Escaped! Performance ------------- Evolutions (9) 4500 Regions Visited (29) 5800 Robots Destroyed (365) 1825 Value Destroyed (20150) 20150 Prototype IDs (159) 3180 Alien Tech Used (4) 800 Bonus (44371) 44371 TOTAL SCORE: 80626 Bonus ------- Triggered High Security 500 High Alert Combat Kills 10712 Follower Combat Kills 947 Prayed to X0-1V1 5000 Major X0-1V1 Interference 21150 Entered Garrisons 200 Registered with UFD 300 Met Optimus in HQ 500 Met Zhirov 300 Met Warlord at Base 500 MAIN.C Attacked Warlord 500 Warlord Defense Kills 94 Met Optimus at Protoforge 1000 Win 3000 Friendly Fire -332 Cogmind --------- Core Integrity 1258/1570 Matter 133/800 Energy 1518/1520 System Corruption 9% Temperature Cool (4) Movement Flying (29) Location To Epsilon Eridani Parts ------- > --- POWER (3) -------- Concept Zero-point Core > --- PROPULSION (8) --- Impulse Thruster Array Impulse Thruster Array Impulse Thruster Array Experimental Q-thruster > --- UTILITY (8) ------ 0bPrime Scrap Suit Advanced Heat Sink Concept Thermoelectric Network Concept Antigrav Storage Unit Concept Core Analysis Suite Concept Recoil Nullifier Graphene Brace > --- WEAPON (5) ------- Railgun Compact Linear Accelerator Compact Linear Accelerator > --- INVENTORY (25) --- Improved Fusion Compressor Impulse Thruster Array Impulse Thruster Array 0bPrime Scrap Suit Advanced Heat Sink Concept Thermoelectric Network Advanced Weight Redist. System Concept Core Analysis Suite Concept Recoil Nullifier Phase Shifter Centrium Light Armor Plating Experimental Force Field Concept Antimissile System Concept Matter Streamer Enhanced Hardcell Cannon Compact Linear Accelerator Concept Smart ZDS LU-1G1's Laser Shovel Plasma Lance Peak State ------------ > --- POWER ------------ Light Neutrino Core Micro Antimatter Reactor > --- PROPULSION ------- Electron Diverter Electron Diverter Electron Diverter Cooled Impulse Thruster Cooled Impulse Thruster Impulse Thruster Array Experimental Surge Thruster > --- UTILITY ---------- Concept Antigrav Storage Unit Experimental Core Analyzer Concept Core Analysis Suite Concept Reaction Jets Graphene Brace Concept Hardlight Director X0-1V1's Piety Tracker > --- WEAPON ----------- Concept XC Strikerail Concept XC Strikerail Concept XC Strikerail Concept XC Strikerail Concept XC Strikerail > --- INVENTORY -------- Micro Antimatter Reactor Experimental Q-thruster Experimental Cooling System Concept Thermoelectric Network Medium Storage Unit Concept NT7 Matterbank Concept Core Analysis Suite Concept Cloak Mesh Concept Cloak Mesh Crosscalibrator Transdimensional Reconstructor Subatomic Replicator Concept Navigation Harness Concept XC Strikerail Concept XC Strikerail Concept XC Strikerail Concept XC Strikerail Concept XC Strikerail LU-1G1's Laser Shovel Concept Blasthammer [Rating: 256] Favorites ----------- Power Light Nuclear Core Engine Light Ion Engine Power Core Light Nuclear Core Reactor Micro Antimatter Reactor Propulsion Improved VTOL Module Treads Light Treads Leg Experimental VSS Leg Wheel Centrium Wheel Hover Unit Hover Unit Flight Unit Improved VTOL Module Utility X0-1V1's Piety Tracker Device X0-1V1's Piety Tracker Storage Medium Storage Unit Processor Experimental Core Analyzer Hackware Advanced Hacking Suite Protection Advanced Powered Armor Weapon KE Penetrator Energy Gun Medium Laser Energy Cannon Phase Cannon Ballistic Gun KE Penetrator Ballistic Cannon Compact Linear Accelerator Launcher Concept Smart ZDS Special Weapon Improved Remote Datajack Impact Weapon Thunder Hammer Slashing Weapon Scythe Piercing Weapon Lance Special Melee Weapon Chaos Jack Build | -11 -10 -10 -9 -9 -8 -8 -8 -7 -7 -7 -7 -5 -5 -5 -5 -5 -5 -4 -4 -4 -4 -4 -3 -3 -3 -2 -2 -2 -1 ------- Run | Yrd Mat Min Mat Min Mat Gar Mat Fac Sto Rec Scr Fac Was Fac Upp Upp War Pro Fac Upp Upp Zhi Pro Res Qua Res Tes Frg Acc Slots Evolved 17 | . . . 2 . 2 . . 2 . . . 4 . . . . . . 2 . . . . 2 . 2 . . 1 Power 1 | . . . . . . . . . . . . 1 . . . . . . . . . . . . . . . . . Propulsion 6 | . . . . . . . . 1 . . . 1 . . . . . . 2 . . . . 1 . . . . 1 Utility 6 | . . . . . 1 . . 1 . . . 1 . . . . . . . . . . . 1 . 2 . . . Weapon 4 | . . . 2 . 1 . . . . . . 1 . . . . . . . . . . . . . . . . . Parts Attached 359 | 8 11 3 20 3 17 28 17 9 5 . 7 19 . 20 2 1 8 1 30 1 1 7 3 25 12 10 2 72 17 Power 40 | 1 . . 3 . 3 5 1 . 1 . 1 5 . 1 . 1 . . 5 . . 1 1 4 2 . . 4 1 Engine 5 | 1 . . 2 . 2 . . . . . . . . . . . . . . . . . . . . . . . . Core 23 | . . . 1 . 1 5 1 . 1 . 1 5 . 1 . 1 . . 4 . . . . . . . . 1 1 Reactor 12 | . . . . . . . . . . . . . . . . . . . 1 . . 1 1 4 2 . . 3 . Propulsion 70 | 2 4 2 3 1 2 5 5 1 1 . . 2 . 2 . . 1 . 7 1 . . 2 9 4 . . 10 6 Treads 2 | 2 . . . . . . . . . . . . . . . . . . . . . . . . . . . . . Leg 1 | . . . . . . . . . . . . . . . . . . . . . . . . . . . . 1 . Wheel . | . . . . . . . . . . . . . . . . . . . . . . . . . . . . . . Hover 3 | . 2 . . . . . . . . . . . . . . . . . 1 . . . . . . . . . . Flight 64 | . 2 2 3 1 2 5 5 1 1 . . 2 . 2 . . 1 . 6 1 . . 2 9 4 . . 9 6 Utility 123 | 2 4 . 3 . 4 6 7 4 2 . 4 6 . 5 2 . 3 1 9 . . 3 . 6 5 8 2 31 6 Device 74 | 2 2 . . . 2 4 2 1 1 . 1 5 . 5 2 . 2 . 3 . . 2 . 2 3 7 2 20 6 Storage 16 | . . . 2 . 1 1 1 1 1 . 2 1 . . . . 1 . 2 . . 1 . . 1 . . 1 . Processor 24 | . 2 . . . 1 1 2 2 . . 1 . . . . . . 1 4 . . . . 1 1 . . 8 . Hackware 3 | . . . . . . . . . . . . . . . . . . . . . . . . 2 . 1 . . . Protection 6 | . . . 1 . . . 2 . . . . . . . . . . . . . . . . 1 . . . 2 . Artifact . | . . . . . . . . . . . . . . . . . . . . . . . . . . . . . . Weapon 126 | 3 3 1 11 2 8 12 4 4 1 . 2 6 . 12 . . 4 . 9 . 1 3 . 6 1 2 . 27 4 Energy Gun 2 | 2 . . . . . . . . . . . . . . . . . . . . . . . . . . . . . Energy Cannon 2 | . . . . . . . . . . . . . . . . . . . . . . 1 . . . . . 1 . Ballistic Gun 83 | 1 3 . 7 1 8 8 4 3 . . 1 4 . 9 . . 1 . 2 . . 1 . 3 . 2 . 23 2 Ballistic Cannon 11 | . . . 3 . . . . 1 . . . 1 . . . . 1 . 1 . . . . 1 1 . . . 2 Launcher 8 | . . 1 . . . 1 . . . . . . . 1 . . . . 2 . . . . 1 . . . 2 . Special Weapon 4 | . . . . . . 1 . . . . 1 . . 1 . . 1 . . . . . . . . . . . . Impact Weapon 1 | . . . . . . . . . . . . . . . . . . . . . 1 . . . . . . . . Slashing Weapon 3 | . . . 1 . . 1 . . . . . . . . . . . . 1 . . . . . . . . . . Piercing Weapon 6 | . . . . . . . . . 1 . . 1 . 1 . . 1 . 1 . . . . 1 . . . . . Special Melee Weapon 6 | . . . . 1 . 1 . . . . . . . . . . . . 2 . . 1 . . . . . 1 . Unidentified Prototypes 39 | . 1 . 1 . 1 . 2 . . . 1 2 . . . . 4 . 8 . . 4 . 3 1 . . 11 . Corrupted Parts 1 | . . . . . . . . . . . . . . . . . . . . . . . . . . . . . 1 System Corruption 9 | . . . . . . . . . . . . . . . . . . . . . . . . . . . . . 9 Parts Lost 85 | . 1 . . 1 2 13 . . 1 . 1 4 . 4 . 1 1 1 10 4 6 . 7 2 1 . . 15 10 Power 12 | . . . . . 1 2 . . 1 . . . . . . 1 . 1 . . 1 . 2 . . . . 3 . Propulsion 25 | . 1 . . . . 5 . . . . . . . 2 . . 1 . 4 4 3 . . 2 . . . 1 2 Utility 18 | . . . . . 1 1 . . . . . 2 . 1 . . . . 3 . 1 . 1 . 1 . . 4 3 Weapon 30 | . . . . 1 . 5 . . . . 1 2 . 1 . . . . 3 . 1 . 4 . . . . 7 5 Highest Loss Streak 6 | . 1 . . 1 2 6 . . 1 . 1 2 . 2 . 1 1 2 5 2 4 . 4 2 1 . . 6 5 To Critical Strikes . | . . . . . . . . . . . . . . . . . . . . . . . . . . . . . . Average Backups 10 | 2 4 5 8 9 9 7 7 7 10 10 11 10 10 9 9 10 9 9 9 9 9 9 9 5 7 8 8 18 17 Power . | . 1 . . . . . . . . . . . . . . . . . . . . . . . . . . . 1 Propulsion 1 | . . . 1 1 2 1 3 2 3 4 3 2 2 1 1 1 1 1 . . . . . . . . . 2 2 Utility 3 | . 1 1 1 1 1 1 1 1 2 2 2 3 4 4 3 3 5 5 5 4 3 4 6 2 1 2 1 7 9 Weapon 2 | 1 2 3 3 3 3 3 1 2 2 2 2 1 1 1 1 2 1 1 1 2 3 2 1 . 2 3 3 5 2 Tool/Special . | . . . . . . . . . . . . . . . . . . . . . . . . . . . . . . Unused Backups 93 | . 8 2 4 1 5 4 2 3 . . 2 4 . 1 3 1 . 4 7 1 . . . . . . 3 21 17 Power 4 | . 2 . . . . . . . . . . . . . . . . . . . . . . . . . . . 2 Propulsion 19 | . . . . 1 2 . . . . . . 3 . . . 1 . . 3 1 . . . . . . 2 4 2 Utility 36 | . 4 . 1 . 1 . 1 1 . . 2 . . . 3 . . . 1 . . . . . . . 1 11 10 Weapon 32 | . 2 2 3 . 2 3 1 2 . . . 1 . 1 . . . 4 2 . . . . . . . . 6 3 Tool/Special 2 | . . . . . . 1 . . . . . . . . . . . . 1 . . . . . . . . . . Average Slot Usage (%) 85 | . 85 100 99 99 96 86 100 98 97 100 89 97 94 96 99 94 94 88 86 75 47 42 43 42 83 92 95 81 63 Engine 1 | . 7 14 9 . . . . . . . . . . . . . . . . . . . . . . . . . . Core 4 | . . . 1 11 7 4 9 7 4 7 7 10 11 11 11 11 11 5 6 5 2 . . . . . . . 3 Reactor 1 | . . . . . . . . . . . . . . . . . . . 1 . . 1 2 1 4 8 8 6 . Treads 1 | . 12 . . . . . . . . . . . . . . . . . . . . . . . . . . . . Flight 22 | . 9 17 33 33 27 21 27 30 30 30 30 29 29 28 28 23 22 17 22 21 6 . 5 12 35 30 30 23 15 Device 16 | . 14 28 11 11 12 15 14 15 15 15 14 21 23 22 23 23 22 22 19 15 13 12 13 11 10 16 26 18 16 Storage 5 | . . . 8 11 9 9 9 7 7 7 7 5 5 5 5 5 5 5 5 5 5 5 5 1 3 4 4 4 3 Processor 3 | . 9 . . . 3 . 2 5 7 7 7 . . . . . . . 1 5 . . . . . 2 . 6 7 Ballistic Gun 19 | . 23 12 22 22 35 31 32 29 23 23 9 22 17 19 23 23 23 23 12 6 3 3 . . 14 15 21 18 9 Ballistic Cannon 1 | . . . 9 9 . . . . . . . . . . . . . 5 6 2 . . . . . 3 . . 4 Piercing Weapon 1 | . . . . . . . . . 5 7 3 4 5 4 5 5 5 5 3 . 3 5 . 2 4 3 4 . . Special Melee Weapon 1 | . . . . . . . . . . . 6 . . . . . . . 3 4 5 6 5 . . . . . . Peak Build Rating 256 | 5 22 21 34 36 46 46 54 62 63 63 63 94 91 102 102 100 119 119 144 112 88 76 76 132 151 183 183 256 215 Average Rating 90 | 3 10 21 30 34 43 38 47 59 61 63 55 86 91 96 100 97 101 113 125 89 64 60 62 75 131 172 181 217 199 On Entrance 79 | . 4 21 21 33 36 39 46 54 61 63 63 58 91 91 102 97 100 119 113 109 76 48 76 62 124 151 181 183 163 Avg Prop Armor Cover (%) 9 | 31 18 14 1 . . . . . . . . . . . . . 1 . 3 4 5 . 7 4 4 1 . . . Naked Turns . | . . . . . . . . . . . . . . . . . . . . . . . . . . . . . . Heaviest Build 94 | 4 10 8 25 25 30 29 28 31 31 31 41 44 40 51 47 46 52 52 58 37 29 49 46 54 60 68 67 94 86 Greatest Support 86 | 20 14 32 32 29 29 29 35 33 34 34 40 45 45 51 51 46 52 52 65 37 30 30 30 73 77 77 77 86 76 Greatest Overweight (x) 2 | 1 2 . . . 1 1 . . . . 1 . . 1 . . 1 . 1 . . 1 1 1 . . . 1 1 Average Overweight (x) . | . . . . . . . . . . . . . . . . . . . . . . . . . . . . . . Largest Inventory Capacity 25 | 5 5 5 10 10 10 10 8 10 10 10 15 15 10 10 10 10 10 10 10 10 10 10 10 10 10 10 10 25 25 Average Capacity 11 | 5 5 5 8 10 10 9 8 8 10 10 12 10 10 10 10 10 10 10 10 10 10 10 10 6 9 10 10 21 25 Most Carried 25 | 5 5 5 10 10 10 10 8 10 10 10 14 13 10 10 10 10 10 10 10 10 10 10 10 10 10 10 10 25 25 Average Carried 10 | 2 4 4 8 9 9 7 7 7 9 10 11 9 10 9 9 9 9 9 9 9 9 9 9 6 8 10 9 20 20 Final Capacity 25 | 5 5 5 10 10 10 8 8 10 10 10 15 10 10 10 10 10 10 10 10 10 10 10 10 5 10 10 10 25 25 Final Carried 25 | 5 5 5 10 10 9 8 8 10 10 10 14 10 10 10 10 10 10 10 10 9 10 10 9 5 10 10 10 25 22 Scrap Suit Usage (%) 1 | . . . . . . . . . . . . . . . . . . . . . . . . . . . . 7 11 Parts Cannibalized 12 | . . . . . . . . . . . . . . . . . . . . . . . . . . . . 11 1 Class Distribution -------------------- 26% | Scavenger-Sprinter 25% | Sprinter 15% | Mutant 11% | Gunner 7% | Commander-Sprinter 4% | Scavenger-Mutant Dominant Class ---------------- Mutant | -10/Materials Scavenger-Mutant | -10/Mines Gunner | -9/Materials Gunner | -9/Mines Sprinter | -8/Materials Scavenger-Sprinter | -8/Garrison Commander-Sprinter | -8/Materials Scientist-Sprinter | -7/Factory Sprinter | -7/Storage Sprinter | -7/Recycling Sprinter | -7/Scraptown Sprinter | -5/Factory Sprinter | -5/Waste Sprinter | -5/Factory Sprinter | -5/Upper Caves Sprinter | -5/Upper Caves Commander-Sprinter | -5/Warlord Executioner | -4/Proximity Caves Scavenger-Sprinter | -4/Factory Scavenger-Mutant | -4/Upper Caves Scavenger-Mutant | -4/Upper Caves Mutant | -4/Zhirov Mutant | -3/Proximity Caves Mutant | -3/Research Scavenger-Sprinter | -3/Quarantine Scavenger-Sprinter | -2/Research Scavenger-Sprinter | -2/Testing Scavenger-Sprinter | -2/Protoforge Scavenger-Sprinter | -1/Access Resources | -11 -10 -10 -9 -9 -8 -8 -8 -7 -7 -7 -7 -5 -5 -5 -5 -5 -5 -4 -4 -4 -4 -4 -3 -3 -3 -2 -2 -2 -1 ----------- Run | Yrd Mat Min Mat Min Mat Gar Mat Fac Sto Rec Scr Fac Was Fac Upp Upp War Pro Fac Upp Upp Zhi Pro Res Qua Res Tes Frg Acc Matter Collected 21681 | 286 456 56 1056 344 923 2142 496 233 85 . 410 745 . 627 187 378 462 113 1121 72 312 223 237 365 294 444 139 8223 1252 Remotely . | . . . . . . . . . . . . . . . . . . . . . . . . . . . . . . Salvage Created 17784 | 170 527 8 968 230 979 1440 468 60 . . . 890 . 257 219 290 67 141 1640 212 185 223 322 254 139 191 7 7126 771 Parts 841 | 11 39 6 36 11 66 76 28 3 . . . 40 . 17 6 20 5 4 60 7 8 1 5 11 5 4 . 321 51 Haulers Intercepted 14 | . 2 . 3 . 3 . 2 . . . . . . . . . . . 1 . . . . 2 . . . 1 . Recyclers Shooed 7 | . . . 1 1 1 . . . 1 . . 1 . . . . . . 1 . . . . . . 1 . . . Parts Field Recycled . | . . . . . . . . . . . . . . . . . . . . . . . . . . . . . . Retrieved Matter . | . . . . . . . . . . . . . . . . . . . . . . . . . . . . . . Parts Self-Destructed 41 | . . . . . . . . . . . . . . . 2 21 . 4 . 7 5 . 2 . . . . . . Prevented 1 | . . . . . . . . . . . . . . . . 1 . . . . . . . . . . . . . Parts Restored 4 | . . . . . . . . . . . . . . . . . . . . . . . . . . . . 4 . Faulty 4 | . . . . . . . . . . . . . . . . . . . . . . . . . . . . 4 . Kills | -11 -10 -10 -9 -9 -8 -8 -8 -7 -7 -7 -7 -5 -5 -5 -5 -5 -5 -4 -4 -4 -4 -4 -3 -3 -3 -2 -2 -2 -1 ------- Run | Yrd Mat Min Mat Min Mat Gar Mat Fac Sto Rec Scr Fac Was Fac Upp Upp War Pro Fac Upp Upp Zhi Pro Res Qua Res Tes Frg Acc Combat Hostiles Destroyed 294 | . 9 3 13 3 22 34 5 1 . . . 11 . 6 3 7 1 2 13 1 8 . 11 3 . . 1 107 30 Melee 10 | . . . . . . 3 . . . . . . . . . . . . 2 1 . . . 3 . . . 1 . Guns 204 | . 9 . 9 3 19 29 5 1 . . . 10 . . 3 7 1 2 6 . . . . . . . . 90 10 Cannons 14 | . . . 2 . . . . . . . . 1 . . . . . . 5 . . . 3 . . . . . 3 AOE 59 | . . 3 . . 3 1 . . . . . . . 6 . . . . . . 8 . 5 . . . 1 15 17 Classes Destroyed 31 | 2 7 . 3 . 2 2 . . . . . . . . 1 1 1 . 1 1 . . . . . . . 10 . Worker 8 | . 1 . 2 . 1 . . . . . . . . . . . . . 4 . . . . . . . . . . Builder 2 | . . . . . . . . . . . . . . . . . . . 2 . . . . . . . . . . Tunneler 6 | 4 . . . . . . 1 . . . . 1 . . . . . . . . . . . . . . . . . Hauler 14 | . 2 . 3 . 3 . 2 . . . . . . . . . . . 1 . . . . 2 . . . 1 . Recycler 17 | 1 . . 1 2 . . 1 . . . . 3 . 1 . . . . 5 . . . . . 1 1 . . 1 Mechanic 9 | . 1 . . . . . . . . . . 1 . . . . . . . . . . . . . . . 7 . Operator 6 | . 1 . . . 1 . . . . . . 1 . 2 . . . . 1 . . . . . . . . . . Drone 13 | . . . . . . 1 . . . . . . . . . . . . . . . . 1 . . . 1 10 . Watcher 8 | . 3 . 2 . . . 1 . . . . . . . . . . . 1 . . . . . . 1 . . . Swarmer 77 | . 2 3 . 3 8 4 2 . . . . 9 . 5 . 4 . . 4 . 4 . 4 3 . . . 7 15 Cutter 13 | . . . . . 1 5 . . . . . . . . . . . . 1 . . . . . . . . . 6 Saboteur 1 | . . . . . . . . . . . . . . . . . . . . . . . . . . . . 1 . Grunt 59 | . 7 . 5 . 4 11 2 . . . . 1 . 1 . . . 2 2 2 4 . 4 . . . . 14 . Brawler 8 | . . . 2 . 1 1 . . . . . . . . . . . . . . . . . . . . . 4 . Duelist 7 | . . . 1 . . 1 . . . . . . . . . . . . . . . . 1 . . . . 4 . Protector 3 | . . . . . . . . . . . . . . . . . 1 . . . . . . . . . . 2 . Researcher 2 | . . . . . . . . . . . . . . . . . . . . . . . . . . . . 2 . Sentry 38 | . . . 5 . 7 6 2 1 . . . 1 . . . 1 . . 2 . . . 1 . . . . 10 2 Specialist 2 | . . . . . . 1 . . . . . . . . 1 . . . . . . . . . . . . . . Hunter 14 | . . . . . 1 4 . . . . . . . . . . . . 1 . . . . . . . . 8 . Programmer 14 | . . . . . . . . . . . . . . . . 2 . . 1 . . . . . . . . 9 2 Behemoth 1 | . . . . . . . . . . . . . . . . . . . . . . . . . . . . 1 . Decapitator 9 | . . . . . . . . . . . . . . . . . . . . . . . . . . . . 9 . Immortal 4 | . . . . . . . . . . . . . . . . . . . . . . . . . . . . 4 . Striker 11 | . . . . . . . . . . . . . . . . . . . . . . . . . . . . 6 5 Executioner 14 | . . . . . . . . . . . . . . . . . . . . . . . . . . . . 14 . Alpha 7 2 | . . . . . . . . . . . . . . . . . . . . . . . . . . . . 2 . V-Series 1 | . . . . . . . . . . . . . . . . . . . . . . . . . . . . 1 . Bolteater 1 | . . . . . . . . . . . . . . . . . . . . . . . . . . . . 1 . Federalist 1 | . . . . . . . . . . . . . . . . . . . . . . . . . . . . 1 . Elite 1 | . . . . . . . . . . . . . . . . . . . . . . . . . . . . 1 . Decomposer 2 | . . . . . . . . . . . . . . . 2 . . . . . . . . . . . . . . Samaritan 1 | . . . . . . . . . . . . . . . . . . . . 1 . . . . . . . . . Thug 3 | . . . . . . . . . . . . . . . . . . . 3 . . . . . . . . . . Fireman 2 | . . . . . . . . . . . . . . . 2 . . . . . . . . . . . . . . Best Kill Streak 18 | 4 5 3 3 4 7 7 3 1 . . . 6 . 5 2 4 1 2 7 1 8 . 3 3 1 1 1 18 8 Combat Bots Only 17 | . 3 3 2 3 6 7 3 1 . . . 6 . 5 2 4 1 2 4 1 8 . 4 3 . . 1 17 8 Max Kills in Single Turn 6 | 1 1 3 1 1 2 1 1 1 . . . 2 . 3 1 1 1 1 3 1 3 . 1 1 1 1 1 6 6 Gunslinging 1 | . . . . . 1 . . . . . . 1 . . . . . . . . . . . . . . . 1 1 Exploded 6 | . . 3 . . 2 1 . . . . . . . 3 . . . . . . 3 . 1 . . . 1 5 6 Melee 1 | . . . . . . 1 . . . . . . . . . . . . 1 1 . . . 1 . . . 1 . Uniques/NPCs Destroyed . | . . . . . . . . . . . . . . . . . . . . . . . . . . . . . . Combat | -11 -10 -10 -9 -9 -8 -8 -8 -7 -7 -7 -7 -5 -5 -5 -5 -5 -5 -4 -4 -4 -4 -4 -3 -3 -3 -2 -2 -2 -1 -------- Run | Yrd Mat Min Mat Min Mat Gar Mat Fac Sto Rec Scr Fac Was Fac Upp Upp War Pro Fac Upp Upp Zhi Pro Res Qua Res Tes Frg Acc Hostile Shots Fired 1771 | . 33 . 49 19 95 245 22 28 38 . 27 60 . 78 11 47 3 42 122 28 61 . 36 45 38 4 42 375 223 Missed 843 | . 10 . 19 7 41 91 12 17 22 . 14 26 . 42 3 21 1 25 56 13 22 . 14 20 25 3 29 186 124 Hits 928 | . 23 . 30 12 54 154 10 11 16 . 13 34 . 36 8 26 2 17 66 15 39 . 22 25 13 1 13 189 99 Melee 40 | . . . . . 9 19 . . . . . . . . . . . . 3 . . . 1 . . . 1 4 3 Projectile 888 | . 23 . 30 12 45 135 10 11 16 . 13 34 . 36 8 26 2 17 63 15 39 . 21 25 13 1 12 185 96 AOE 19 | . . . . 10 . 2 . . . . . . . . . . . . 5 . . . . . . . . 1 1 Critical Strikes 58 | . 1 . 2 . 5 8 1 . 1 . 2 . . 3 2 1 . 1 4 1 1 . 1 . 1 . . 16 7 Actively Blocked 34 | . . . . . . . . . . . . . . 3 1 1 . 1 4 1 1 . 1 . 1 . . 16 4 Part Disruptions 7 | . . . . . . . . 1 . . . . . . . . 4 . 1 . . . . . . . . 1 . Damage Taken 19758 | . 264 . 412 348 740 2264 114 127 163 . 171 720 . 749 147 429 195 278 1344 357 717 . 652 519 316 71 304 5754 2603 Core 3087 | . 27 . 54 28 116 650 21 . 27 . 48 104 . 146 46 81 . 59 170 . 249 . 116 128 50 . 92 681 194 Absorbed by Shields 469 | . . . . . . 69 . . . . . . . 22 . . . . . . . . . . . . . 378 . Redirected to Shielding 4 | . . . . . . . 4 . . . . . . . . . . . . . . . . . . . . . . Ignored by Resistances 17 | . . . . . . . . . . . . . . . . . . . . . . . . . 5 . . 12 . Regen/Repaired (Parts) 431 | . . . . . 40 . . . . . . 35 . . . . 39 . . . . . . . . . . 307 10 Core Remaining (%) 75 | 100 . 100 . 77 . . 28 . . . 88 . . . . . . 84 . . . . 52 . 85 . . 63 80 Volleys Fired 609 | 13 52 1 52 10 56 88 12 2 . . . 16 . 7 6 12 6 4 20 . 6 . 21 . . . 1 188 36 Largest 7 | 2 2 1 3 3 4 4 4 4 . . . 5 . 4 4 4 4 5 5 . 1 . 2 . . . 1 7 5 Hottest 330 | 70 46 33 85 76 100 96 114 104 . . . 170 . 132 132 132 132 190 190 . 70 . 155 . . . 52 330 223 Shots Fired 2091 | 19 98 1 156 23 216 312 45 8 1 . . 66 . 13 24 49 25 18 82 . 6 . 23 . 1 1 1 777 126 Gun 1949 | 19 98 . 122 22 214 308 45 8 1 . . 64 . 8 24 49 25 15 58 . . . . . 1 1 . 771 96 Cannon 108 | . . . 34 1 . . . . . . . 2 . . . . . 3 23 . . . 19 . . . . 1 25 Launcher 34 | . . 1 . . 2 4 . . . . . . . 5 . . . . 1 . 6 . 4 . . . 1 5 5 Special . | . . . . . . . . . . . . . . . . . . . . . . . . . . . . . . Kinetic 2024 | 6 98 . 156 23 214 308 45 8 1 . . 66 . 8 24 49 25 18 81 . . . . . 1 1 . 771 121 Thermal 33 | 13 . . . . . . . . . . . . . . . . . . . . . . 19 . . . . 1 . Explosive 34 | . . 1 . . 2 4 . . . . . . . 5 . . . . 1 . 6 . 4 . . . 1 5 5 Electromagnetic . | . . . . . . . . . . . . . . . . . . . . . . . . . . . . . . Robot Hit Streak 48 | 8 10 2 12 4 9 15 6 8 9 . . 4 . 1 4 12 4 3 6 . 5 . 6 . . . . 48 6 Robot Miss Streak 11 | 2 4 . 6 4 5 6 5 . . . . 6 . 4 5 9 2 1 11 . . . 4 . . . . 10 5 Penetration Max 2 | . . . . . . . 1 . . . . 1 . . 1 . 1 1 1 . . . . . . . . 2 1 Secondary Targets 38 | . 1 . 1 . 2 2 2 . . . . 4 . . . 4 1 . . . . . . . . . . 19 2 Max Gunslinging Chain 2 | . 1 . 1 . 1 1 1 . . . . 1 . . . 1 1 . . . . . . . . . . 1 2 Shots Hit Robots 1342 | 15 67 1 91 13 114 213 34 9 2 . 11 42 . 4 11 23 12 8 64 8 10 8 17 12 2 5 . 487 59 Core Hits 655 | 6 24 3 32 6 45 71 10 3 . . . 23 . 14 6 10 7 5 42 3 16 4 11 5 1 1 1 267 39 Critical Kills 39 | . . . . . 1 1 . . . . . 1 . 1 1 1 . . 1 . . . . . . . . 30 2 Critical Parts Destroyed 44 | . . . 2 . 1 1 . . 1 . . . . . . . . . 1 . . . 1 . . . . 35 2 Critical Strikes 103 | 1 . . 3 . 2 4 1 . 1 . . 1 . 1 1 1 . . 5 . . . 1 . . 1 . 73 7 Burn 1 | 1 . . . . . . . . . . . . . . . . . . . . . . . . . . . . . Destroy 92 | . . . 3 . 2 2 . . 1 . . 1 . 1 1 1 . . 2 . . . . . . . . 73 5 Blast 2 | . . . . . . . . . . . . . . . . . . . . . . . . . . . . . 2 Smash 1 | . . . . . . . . . . . . . . . . . . . . . . . 1 . . . . . . Sever 4 | . . . . . . 2 1 . . . . . . . . . . . 1 . . . . . . . . . . Impale 3 | . . . . . . . . . . . . . . . . . . . 2 . . . . . . 1 . . . Melee Attacks 310 | . . . 1 1 . 90 20 3 11 . 17 22 . 10 4 . . . 40 10 10 8 10 22 16 10 2 3 . Impact 16 | . . . . . . . . . . . . . . . . . . . . . 1 . 5 10 . . . . . Slashing 104 | . . . 1 . . 59 20 . 2 . . . . . . . . . 12 10 . . . . . . . . . Piercing 141 | . . . . . . . . . 9 . 6 22 . 10 4 . . . 28 . 9 5 5 12 16 10 2 3 . Sneak Attacks 100 | . . . . 1 . 32 5 3 1 . 11 7 . 1 2 . . . 19 6 1 3 2 2 2 1 . 1 . Combat Hostiles 3 | . . . . . . 1 . . . . . . . . . . . . 1 . . . 1 . . . . . . Follow-up Attacks . | . . . . . . . . . . . . . . . . . . . . . . . . . . . . . . Damage Inflicted 50425 | 165 1011 131 1570 191 2073 3416 1071 115 88 . . 1609 . 1073 445 586 345 259 3161 736 1735 255 1465 774 180 335 115 21400 6121 Guns 28955 | 165 1011 . 1167 172 1706 2563 427 115 23 . . 805 . 32 281 586 345 218 796 . . . . . . . . 17038 1505 Cannons 1753 | . . . 403 19 . . . . . . . 19 . . . . . 41 449 . . . 178 . . . . . 644 Explosions 12910 | . . 131 . . 367 383 . . . . . . . 897 . . . . 44 . 1630 . 1144 . . . 115 4227 3972 Melee 6807 | . . . . . . 470 644 . 65 . . 785 . 144 164 . . . 1872 736 105 255 143 774 180 335 . 135 . Ramming . | . . . . . . . . . . . . . . . . . . . . . . . . . . . . . . Kinetic 30323 | 40 1011 . 1488 191 1706 2563 427 115 23 . . 824 . 32 281 586 345 259 1245 . . . . . . . . 17038 2149 Thermal 429 | 125 . . 82 . . . . . . . . . . . . . . . 44 . . . 178 . . . . . . Explosive 12866 | . . 131 . . 367 383 . . . . . . . 897 . . . . . . 1630 . 1144 . . . 115 4227 3972 Electromagnetic . | . . . . . . . . . . . . . . . . . . . . . . . . . . . . . . Impact 754 | . . . . . . . . . . . . . . . . . . . . . . . 137 617 . . . . . Slashing 2747 | . . . . . . 470 644 . . . . . . . . . . . 897 736 . . . . . . . . . Piercing 3306 | . . . . . . . . . 65 . . 785 . 144 164 . . . 975 . 105 255 6 157 180 335 . 135 . Highest Corruption 37 | . . . 2 . 12 37 16 14 14 14 . 2 8 10 10 23 23 17 9 9 . . . 7 24 . . 27 9 Average Corruption 11 | . . . 2 . 12 15 16 3 14 14 . 2 3 9 10 16 13 16 3 9 . . . 7 19 . . 9 9 Corruption Purged . | . . . . . . . . . . . . . . . . . . . . . . . . . . . . . . Corruption Blocked . | . . . . . . . . . . . . . . . . . . . . . . . . . . . . . . Effects 283 | . . . 5 . 28 67 19 1 5 1 . . . 11 12 9 20 6 10 5 . . . 3 20 . . 51 10 Message Errors 54 | . . . . . 4 10 1 . . . . . . 2 3 3 5 1 . 1 . . . 1 8 . . 9 6 Matter Fused 55 | . . . . . 5 11 9 . 1 . . . . 5 4 1 4 . 4 . . . . 1 . . . 10 . Heat Flow Errors 31 | . . . 4 . 5 8 1 1 . . . . . 1 . . 2 . 1 1 . . . . 1 . . 4 2 Energy Discharges 24 | . . . . . 2 6 1 . 1 1 . . . 1 1 1 3 . 2 . . . . . 1 . . 4 . Parts Rejected 3 | . . . . . . 1 . . . . . . . . 2 . . . . . . . . . . . . . . Parts Fused 5 | . . . . . . 1 1 . 1 . . . . . . . . . . 1 . . . . . . . 1 . Data Loss (minor) 42 | . . . . . 5 12 3 . 1 . . . . . . 2 4 2 2 2 . . . . 4 . . 3 2 Data Loss (major) 13 | . . . . . 1 2 1 . . . . . . 1 . 1 . . 1 . . . . 1 . . . 5 . Misfires 8 | . . . . . 1 3 1 . . . . . . . . 1 1 . . . . . . . 1 . . . . Alerts 5 | . . . 1 . . 1 . . 1 . . . . . . . . 1 . . . . . . . . . 1 . Misdirections 18 | . . . . . 1 3 . . . . . . . 1 1 . 1 . . . . . . . 5 . . 6 . Weapon Failures 25 | . . . . . 4 9 1 . . . . . . . 1 . . 2 . . . . . . . . . 8 . Overload Shots . | . . . . . . . . . . . . . . . . . . . . . . . . . . . . . . Overflow Damage 2472 | . . . . . 5 99 80 . 35 . . 34 . 36 91 . . . 553 118 128 . 264 10 16 154 36 456 357 Projectiles 40 | . . . . . . . . . . . . . . . . . . . 10 . . . . . . . . . 30 Explosions 1202 | . . . . . 5 79 . . . . . . . 36 . . . . . . 101 . 162 . . . 36 456 327 Melee 1230 | . . . . . . 20 80 . 35 . . 34 . . 91 . . . 543 118 27 . 102 10 16 154 . . . Knockbacks 8 | . . . 1 . . . . . . . . . . . . . . . 3 . . . 1 . . . . . 3 Impact 1 | . . . . . . . . . . . . . . . . . . . . . . . 1 . . . . . . Kinetic 7 | . . . 1 . . . . . . . . . . . . . . . 3 . . . . . . . . . 3 Secondary . | . . . . . . . . . . . . . . . . . . . . . . . . . . . . . . Self-Inflicted Damage 230 | . . . . . 62 84 . . . . . . . 84 . . . . . . . . . . . . . . . Shots 6 | . . . . . 2 2 . . . . . . . 2 . . . . . . . . . . . . . . . Rammed . | . . . . . . . . . . . . . . . . . . . . . . . . . . . . . . Targets Rammed . | . . . . . . . . . . . . . . . . . . . . . . . . . . . . . . Kicked . | . . . . . . . . . . . . . . . . . . . . . . . . . . . . . . Crushed . | . . . . . . . . . . . . . . . . . . . . . . . . . . . . . . Highest Temperature 434 | 20 3 . 294 40 262 195 339 97 . . 27 285 4 174 126 352 434 315 222 157 . . . 300 289 33 368 206 223 Average Temperature 87 | 15 2 . 96 14 87 54 101 48 . . 20 73 2 36 54 125 164 160 59 94 . . . 124 81 10 124 105 125 Received Heat Transfer 2269 | . 117 . 207 . 99 378 54 15 81 . 110 72 . 117 85 9 18 69 108 51 36 . 51 30 30 . 27 433 72 Thermoelectric Energy+ 1247 | . . . . . . . . . . . . . . . . . . . . . . . . . . . . 710 537 Effects 12 | . . . 1 . 1 . . . . . . . . . . 1 2 . . . . . . 2 . . 1 2 2 Shutdowns 1 | . . . . . . . . . . . . . . . . . . . . . . . . . . . 1 . . Energy Bleed 3 | . . . 1 . 1 . . . . . . . . . . . 1 . . . . . . . . . . . . Interference 6 | . . . . . . . . . . . . . . . . . . . . . . . . 2 . . . 2 2 Damage (minor) 2 | . . . . . . . . . . . . . . . . 1 1 . . . . . . . . . . . . Siege Activations . | . . . . . . . . . . . . . . . . . . . . . . . . . . . . . . Martial Activations . | . . . . . . . . . . . . . . . . . . . . . . . . . . . . . . Shielding Activations . | . . . . . . . . . . . . . . . . . . . . . . . . . . . . . . Robots Disrupted . | . . . . . . . . . . . . . . . . . . . . . . . . . . . . . . Combat Hostiles . | . . . . . . . . . . . . . . . . . . . . . . . . . . . . . . Robots Corrupted 3 | . . . . . . . . . . . . . . . . . . . . . . . 3 . . . . . . Combat Hostiles 3 | . . . . . . . . . . . . . . . . . . . . . . . 3 . . . . . . Parts Fried 1 | . . . . . . . . . . . . . . . . . . . . . . . . . . . . 1 . Impact Corruptions 7 | . . . . . . . . . . . . . . . . . . . . . . . 6 1 . . . . . Robots Melted . | . . . . . . . . . . . . . . . . . . . . . . . . . . . . . . Combat Hostiles . | . . . . . . . . . . . . . . . . . . . . . . . . . . . . . . Parts Melted 5 | 1 . . 1 . . . . . . . . . . . . . . . . . . . 1 . . . . 2 . Heat Transferred 766 | 444 . . 50 . . . . . . . . . . . . . . . 50 . . . 222 . . . . . . Parts Sabotaged . | . . . . . . . . . . . . . . . . . . . . . . . . . . . . . . Parts Stolen . | . . . . . . . . . . . . . . . . . . . . . . . . . . . . . . Parts Stripped . | . . . . . . . . . . . . . . . . . . . . . . . . . . . . . . Power Chain Reactions . | . . . . . . . . . . . . . . . . . . . . . . . . . . . . . . Alert | -11 -10 -10 -9 -9 -8 -8 -8 -7 -7 -7 -7 -5 -5 -5 -5 -5 -5 -4 -4 -4 -4 -4 -3 -3 -3 -2 -2 -2 -1 ------- Run | Yrd Mat Min Mat Min Mat Gar Mat Fac Sto Rec Scr Fac Was Fac Upp Upp War Pro Fac Upp Upp Zhi Pro Res Qua Res Tes Frg Acc Maximum Alert Level 5 | . . . 2 1 2 5 3 2 1 . . 3 1 4 . . . . 3 . . . . 3 3 3 3 5 5 Low Security (%) 25 | 100 100 100 19 97 18 . . . 86 100 . 50 . . . . . . 12 . . . . . . . . . . Level 1 13 | . . . 44 2 62 11 . 70 13 . . 41 100 29 . . . . 16 . . . . . . . . . . Level 2 19 | . . . 36 . 19 11 . 29 . . . 3 . 21 . . . . 64 . . . . 74 12 85 70 9 . Level 3 16 | . . . . . . 18 100 . . . . 4 . 45 . . . . 6 . . . . 25 87 14 29 19 . Level 4 7 | . . . . . . 28 . . . . . . . 4 . . . . . . . . . . . . . 20 . Level 5 14 | . . . . . . 30 . . . . . . . . . . . . . . . . . . . . . 50 19 High Security 2 | . . . . . . . . . . . . . . . . . . . . . . . . . . . . . 80 Max Security . | . . . . . . . . . . . . . . . . . . . . . . . . . . . . . . Peak Influence 3658 | 10 151 87 472 226 669 2067 1031 471 248 92 . 993 347 1225 . . . . 773 . . . . 805 870 825 879 3658 3265 Initial 2188 | . . 43 29 171 84 211 1007 457 152 92 . . 347 235 . . . . 72 . . . . 616 407 483 463 494 2188 Average 833 | 2 64 34 330 59 318 1236 963 358 153 92 . 232 345 673 . . . . 500 . . . . 681 715 607 614 1760 2712 Influence Increases 18795 | 25 579 87 881 260 998 2086 347 109 186 . . 1329 . 1272 20 175 121 235 1291 286 195 5 225 1079 633 452 666 4046 1207 Destroy 0b10 Robot/C 6500 | . 180 60 260 60 440 880 160 20 . . . 220 . 320 20 140 60 40 260 40 160 . 200 220 . 20 20 2120 600 Destroy 0b10 Robot/NC 495 | 25 40 . 45 10 25 5 25 . . . . 30 . 20 . . 5 . 70 . . 5 5 55 5 20 . 95 10 Destroy Leader 1000 | . 50 10 102 . 126 20 56 10 . . . 30 . 52 . 20 . . 44 . 20 . 20 44 . 14 . 280 102 Allied During Kill 128 | . . . . . . 24 13 . . . . . . . . . 26 . 2 6 . . . 18 . 17 . 19 3 Successful Hack 421 | . 38 . 68 . 28 28 31 19 14 . . 52 . 32 . . . . 43 . . . . 27 10 . 24 7 . Select Force Hacks 160 | . 60 . . . . . . . . . . 50 . 50 . . . . . . . . . . . . . . . Disable Machine 600 | . 15 15 15 . . 60 . . 30 . . . . 60 . . . . 60 . . . . 15 60 . 45 180 45 Anti-Garrison Action 1100 | . . . . . . 750 . . . . . . . 200 . . . . . . . . . . . . . 150 . Destroy Structure 1152 | . 1 2 1 . 17 139 2 . 7 . . 20 . 238 . . . . 136 . . . . 40 20 126 60 166 177 Advance Influence 600 | . . . . . . . . . . . . . . . . . . . . . . . . 600 . . . . . Partial Spotted 720 | . 15 . 45 . 105 45 45 . . . . 15 . 60 . . . . 105 . . . . . 45 45 90 105 . Lose Combat Pursuer 3525 | . 180 . 345 30 45 135 15 60 135 . . 360 . 240 . 15 30 195 465 240 15 . . 60 225 . 165 300 270 Miscellaneous 2394 | . . . . 160 212 . . . . . . 552 . . . . . . 106 . . . . . 268 210 262 624 . Influence Decreases 15530 | 25 468 121 518 482 890 345 1408 779 284 146 92 336 656 392 572 237 724 120 697 413 322 460 200 379 498 487 612 1277 1590 Entered New Map 8379 | . . 68 48 269 134 115 1060 549 184 146 92 . 646 102 452 127 603 . 43 263 112 455 . 9 318 377 362 385 1460 Time Decay 4431 | 25 458 53 350 203 286 . 198 70 50 . . 196 10 170 120 100 111 120 294 90 150 5 150 230 150 90 100 622 30 Search Patrol Dispatched 400 | . . . 100 . . . . . . . . 100 . . . . . . 100 . . . . 100 . . . . . Lost Part 810 | . 10 . . 10 20 130 . . 10 . . 40 . 40 . 10 10 . 100 40 60 . 50 20 10 . . 150 100 Lost Ally 610 | . . . 20 . . 100 . 10 40 . . . . 80 . . . . 160 20 . . . 20 20 20 . 120 . Purge Threat 900 | . . . . . 450 . 150 150 . . . . . . . . . . . . . . . . . . 150 . . Squads Dispatched 100 | . 5 . 2 . 3 . 7 1 2 . . 11 . 11 . . . 1 13 . . . . 4 10 2 2 16 10 Investigation 36 | . 3 . 2 . . . 1 . . . . 8 . 9 . . . . 5 . . . . 1 1 . . 5 1 Extermination 14 | . . . . . . . . 1 . . . 1 . 2 . . . . 2 . . . . 2 2 1 1 2 . Reinforcement 29 | . 2 . . . 2 . 3 . . . . 2 . . . . . . 4 . . . . 1 6 1 . 7 1 Assault 18 | . . . . . . . 3 . 2 . . . . . . . . 1 . . . . . . 1 . 1 2 8 Garrison 3 | . . . . . 1 . . . . . . . . . . . . . 2 . . . . . . . . . . Intercept . | . . . . . . . . . . . . . . . . . . . . . . . . . . . . . . Searches Triggered 4 | . . . 1 . . . . . . . . 1 . . . . . . 1 . . . . 1 . . . . . Construction Impeded . | . . . . . . . . . . . . . . . . . . . . . . . . . . . . . . Haulers Reinforced 2 | . . . . . . . . . . . . . . . . . . . 1 . . . . 1 . . . . . Active Scanning Responses . | . . . . . . . . . . . . . . . . . . . . . . . . . . . . . . Cargo Convoy Interrupts . | . . . . . . . . . . . . . . . . . . . . . . . . . . . . . . Stealth | -11 -10 -10 -9 -9 -8 -8 -8 -7 -7 -7 -7 -5 -5 -5 -5 -5 -5 -4 -4 -4 -4 -4 -3 -3 -3 -2 -2 -2 -1 --------- Run | Yrd Mat Min Mat Min Mat Gar Mat Fac Sto Rec Scr Fac Was Fac Upp Upp War Pro Fac Upp Upp Zhi Pro Res Qua Res Tes Frg Acc Distress Signals 32 | . 1 . 5 1 . . 1 . 3 . . 2 . 1 . . . . 4 . . . . 5 1 . 2 4 2 Communications Jammed 9 | . . . . . . . . . . . . . . . . . . . . . . . . . . . 9 . . Distress Signals 9 | . . . . . . . . . . . . . . . . . . . . . . . . . . . 9 . . Times Spotted 814 | . 34 1 37 11 33 54 20 7 23 . 16 51 3 42 8 8 20 17 62 14 11 . 15 19 43 5 27 152 81 Peak Tracking Total 20 | . 5 2 15 4 8 8 8 4 14 . 12 10 3 12 5 5 7 8 12 17 4 . 5 6 20 2 15 20 19 Tactical Retreats 91 | . 8 . 10 2 1 5 1 2 1 . . 7 . 7 1 1 1 4 8 4 1 . . 1 4 . 4 13 5 Traps | -11 -10 -10 -9 -9 -8 -8 -8 -7 -7 -7 -7 -5 -5 -5 -5 -5 -5 -4 -4 -4 -4 -4 -3 -3 -3 -2 -2 -2 -1 ------- Run | Yrd Mat Min Mat Min Mat Gar Mat Fac Sto Rec Scr Fac Was Fac Upp Upp War Pro Fac Upp Upp Zhi Pro Res Qua Res Tes Frg Acc Traps Triggered 42 | . 1 . 1 . . 13 1 2 . . . 2 . 1 . . 2 . . . . . . . 2 1 2 14 . Indirectly . | . . . . . . . . . . . . . . . . . . . . . . . . . . . . . . Trap Hack Attempts . | . . . . . . . . . . . . . . . . . . . . . . . . . . . . . . Triggered . | . . . . . . . . . . . . . . . . . . . . . . . . . . . . . . Disarmed . | . . . . . . . . . . . . . . . . . . . . . . . . . . . . . . Reprogrammed . | . . . . . . . . . . . . . . . . . . . . . . . . . . . . . . Reused . | . . . . . . . . . . . . . . . . . . . . . . . . . . . . . . Traps Extracted . | . . . . . . . . . . . . . . . . . . . . . . . . . . . . . . Installed . | . . . . . . . . . . . . . . . . . . . . . . . . . . . . . . Triggered . | . . . . . . . . . . . . . . . . . . . . . . . . . . . . . . Most Traps Carried 4 | . . . . . . . . . . . . . . . . . . 4 . . . . . . . . . . . Machines | -11 -10 -10 -9 -9 -8 -8 -8 -7 -7 -7 -7 -5 -5 -5 -5 -5 -5 -4 -4 -4 -4 -4 -3 -3 -3 -2 -2 -2 -1 ---------- Run | Yrd Mat Min Mat Min Mat Gar Mat Fac Sto Rec Scr Fac Was Fac Upp Upp War Pro Fac Upp Upp Zhi Pro Res Qua Res Tes Frg Acc Machines Disabled 71 | . 1 1 1 . . 15 . . 2 . 10 . . 4 . . 1 . 4 . . . . 1 4 . 3 21 3 Max in Single Turn 2 | . 1 1 1 . . 1 . . 1 . 1 . . 1 . . 1 . 1 . . . . . 1 . 1 2 1 Garrison Access 5 | . . . . . . . 1 . . . . . . 2 . . . . . . . . . . . . 1 1 . Garrison Relay 9 | . . . . . . 9 . . . . . . . . . . . . . . . . . . . . . . . Phase Generator 1 | . . . . . . 1 . . . . . . . . . . . . . . . . . . . . . . . Energy Cycler 1 | . . . . . . . . . . . . . . . . . . . . . . . . . . . . . 1 Machines Repaired . | . . . . . . . . . . . . . . . . . . . . . . . . . . . . . . Machines Dismantled 2 | . . . . . . 1 . . . . . . . . . . 1 . . . . . . . . . . . . Machines Sabotaged . | . . . . . . . . . . . . . . . . . . . . . . . . . . . . . . Overloaded Fab Kills 2 | . . . . . . . . . . . . 2 . . . . . . . . . . . . . . . . . Hacking | -11 -10 -10 -9 -9 -8 -8 -8 -7 -7 -7 -7 -5 -5 -5 -5 -5 -5 -4 -4 -4 -4 -4 -3 -3 -3 -2 -2 -2 -1 --------- Run | Yrd Mat Min Mat Min Mat Gar Mat Fac Sto Rec Scr Fac Was Fac Upp Upp War Pro Fac Upp Upp Zhi Pro Res Qua Res Tes Frg Acc Machines Accessed 146 | . 8 . 11 1 10 3 10 7 3 2 6 18 . 14 . . 3 . 12 . . 4 . 4 5 5 8 9 3 Terminals 73 | . 6 . 9 . 6 3 7 4 2 . . 7 . 5 . . . . 5 . . . . 1 3 1 6 6 2 Fabricators 9 | . . . . . . . . 2 . . . 1 . 3 . . . . . . . . . 1 . 1 1 . . Repair Stations 5 | . . . . . 1 . . . . . . 2 . . . . . . 1 . . . . . . . . . 1 Recycling Units 25 | . 2 . 1 . . . 1 . 1 2 . 5 . 4 . . . . 4 . . . . 1 . 1 . 3 . Scanalyzers 13 | . . . 1 . 2 . 1 1 . . . 2 . . . . . . 1 . . . . 1 2 2 . . . Garrison Access 7 | . . . . . 1 . 1 . . . . 1 . 2 . . . . 1 . . . . . . . 1 . . Total Hacks 395 | . 26 . 38 1 33 8 36 14 9 3 36 37 . 34 . . 7 . 23 . . 17 . 11 10 12 18 16 6 Successful 214 | . 14 . 22 1 24 4 20 6 4 . 36 15 . 13 . . 7 . 5 . . 17 . 3 3 5 5 9 1 Failed 178 | . 12 . 16 . 8 4 15 8 5 3 . 22 . 21 . . . . 18 . . . . 8 7 6 13 7 5 Catastrophic 39 | . 2 . 2 . 2 . 5 3 2 . . 7 . 3 . . . . 4 . . . . 1 2 . 2 2 2 Database Lockouts 3 | . . . . . 1 . 1 . . . . . . . . . . . . . . . . . . 1 . . . Manual 150 | . 18 . 18 . 14 4 13 2 2 . . 20 . 23 . . . . 8 . . . . 3 . 5 4 12 4 Terminals 181 | . 19 . 32 . 16 8 18 10 7 . . 14 . 12 . . . . 9 . . . . 3 5 2 11 12 3 Fabricators 24 | . . . . . . . . 3 . . . 3 . 8 . . . . . . . . . 3 . 2 5 . . Repair Stations 10 | . . . . . 2 . . . . . . 2 . . . . . . 3 . . . . . . . . . 3 Recycling Units 54 | . 7 . 2 . . . 2 . 2 3 . 11 . 10 . . . . 8 . . . . 3 . 2 . 4 . Scanalyzers 49 | . . . 4 . 11 . 13 1 . . . 5 . . . . . . 2 . . . . 2 5 6 . . . Garrison Access 16 | . . . . . 4 . 3 . . . . 2 . 4 . . . . 1 . . . . . . . 2 . . Terminal Hacks 110 | . 3 . 11 1 4 2 7 3 3 . 36 2 . 5 . . 7 . 1 . . 17 . . 1 1 2 4 . Record 49 | . . . . . . . . . 1 . 35 . . 1 . . 6 . . . . 5 . . . . . 1 . Part Schematic 6 | . . . 2 . . . . . . . . . . . . . . . . . . 4 . . . . . . . Robot Analysis 7 | . 1 . 2 . . . . . . . . . . . . . . . . . . 4 . . . . . . . Prototype ID Bank 11 | . 1 . 3 . . . 1 1 . . . . . 1 . . . . . . . 4 . . . . . . . Open Door 2 | . . . . 1 . . . . . . . . . . . . 1 . . . . . . . . . . . . Branch Access Points 6 | . . . 1 . . . 2 . . . . . . 1 . . . . 1 . . . . . . 1 . . . Emergency Access Points 3 | . . . . . . 1 . . . . . . . 1 . . . . . . . . . . . . . 1 . Recycling Unit Index 1 | . . . . . . . . . . . . . . . . . . . . . . . . . . . . 1 . Alert Level 1 | . . . . . . . 1 . . . . . . . . . . . . . . . . . . . . . . Unreport Threat 6 | . . . . . 3 . 1 1 . . . . . . . . . . . . . . . . . . 1 . . Locate Traps 10 | . 1 . 1 . 1 . 1 1 1 . . 2 . 1 . . . . . . . . . . 1 . . . . Hauler Manifests 4 | . . . 2 . . . 1 . . . . . . . . . . . . . . . . . . . 1 . . Zone Layout 1 | . . . . . . . . . 1 . . . . . . . . . . . . . . . . . . . . Patrol Navigation 1 | . . . . . . 1 . . . . . . . . . . . . . . . . . . . . . . . Proto ID Catalog 2 | . . . . . . . . . . . 1 . . . . . . . . . . . . . . . . 1 . Fabricator Hacks 6 | . . . . . . . . 1 . . . 1 . 1 . . . . . . . . . 1 . 1 1 . . Network Status 5 | . . . . . . . . 1 . . . 1 . 1 . . . . . . . . . . . 1 1 . . Build 1 | . . . . . . . . . . . . . . . . . . . . . . . . 1 . . . . . Repair Station Hacks 3 | . . . . . 2 . . . . . . . . . . . . . 1 . . . . . . . . . . Scan Component 1 | . . . . . 1 . . . . . . . . . . . . . . . . . . . . . . . . Repair 1 | . . . . . 1 . . . . . . . . . . . . . . . . . . . . . . . . Refit 1 | . . . . . . . . . . . . . . . . . . . 1 . . . . . . . . . . Recycling Unit Hacks 6 | . 1 . . . . . 1 . 1 . . 3 . . . . . . . . . . . . . . . . . Retrieve Components 6 | . 1 . . . . . 1 . 1 . . 3 . . . . . . . . . . . . . . . . . Scanalyzer 29 | . . . 3 . 9 . 9 1 . . . 1 . . . . . . . . . . . 1 2 3 . . . Insert Component 7 | . . . . . 3 . 2 . . . . . . . . . . . . . . . . . . 2 . . . Analyze 8 | . . . . . 3 . 5 . . . . . . . . . . . . . . . . . . . . . . Retrieve Study 14 | . . . 3 . 3 . 2 1 . . . 1 . . . . . . . . . . . 1 2 1 . . . Garrison Access Hacks 4 | . . . . . 1 . 1 . . . . . . 1 . . . . . . . . . . . . 1 . . Unlock Access 2 | . . . . . 1 . 1 . . . . . . . . . . . . . . . . . . . . . . Seal Access 2 | . . . . . . . . . . . . . . 1 . . . . . . . . . . . . 1 . . Unauthorized Hacks 56 | . 10 . 8 . 8 2 2 1 . . . 8 . 6 . . . . 3 . . . . 1 . . 1 5 1 Terminals 28 | . 6 . 7 . 8 2 1 . . . . . . 1 . . . . . . . . . . . . . 3 . Track 2 | . . . . . . . . . . . . . . 1 . . . . . . . . . . . . . 1 . Assimilate 2 | . . . 2 . . . . . . . . . . . . . . . . . . . . . . . . . . Botnet 6 | . . . . . 3 . 1 . . . . . . . . . . . . . . . . . . . . 2 . Operators 1 | . 1 . . . . . . . . . . . . . . . . . . . . . . . . . . . . Skim 15 | . 5 . 5 . 5 . . . . . . . . . . . . . . . . . . . . . . . . Sabotage 1 | . . . . . . 1 . . . . . . . . . . . . . . . . . . . . . . . Override 1 | . . . . . . 1 . . . . . . . . . . . . . . . . . . . . . . . Fabricators 4 | . . . . . . . . 1 . . . 1 . 1 . . . . . . . . . . . . 1 . . Haulers 2 | . . . . . . . . 1 . . . . . . . . . . . . . . . . . . 1 . . Overload 2 | . . . . . . . . . . . . 1 . 1 . . . . . . . . . . . . . . . Repair Stations 3 | . . . . . . . . . . . . 2 . . . . . . . . . . . . . . . . 1 Mechanics 1 | . . . . . . . . . . . . 1 . . . . . . . . . . . . . . . . . Patch 2 | . . . . . . . . . . . . 1 . . . . . . . . . . . . . . . . 1 Recycling Units 20 | . 4 . 1 . . . 1 . . . . 5 . 3 . . . . 3 . . . . 1 . . . 2 . Reject 4 | . 2 . 1 . . . 1 . . . . . . . . . . . . . . . . . . . . . . Tunnel 2 | . 2 . . . . . . . . . . . . . . . . . . . . . . . . . . . . Fedlink 12 | . . . . . . . . . . . . 5 . 3 . . . . 3 . . . . . . . . 1 . Scraphulk 2 | . . . . . . . . . . . . . . . . . . . . . . . . 1 . . . 1 . Scanalyzers . | . . . . . . . . . . . . . . . . . . . . . . . . . . . . . . Garrison Access 1 | . . . . . . . . . . . . . . 1 . . . . . . . . . . . . . . . Jam 1 | . . . . . . . . . . . . . . 1 . . . . . . . . . . . . . . . Data Cores Recovered 5 | . . . . . 1 . . . . . . 1 . 2 . . . . . . . . . . . 1 . . . Used 2 | . . . . . 1 . . . . . . . . 1 . . . . . . . . . . . . . . . Hacking Detections 114 | . 8 . 11 . 9 2 9 5 3 2 . 14 . 11 . . . . 11 . . . . 4 5 4 7 7 2 Full Trace Events 9 | . . . 1 . . 1 . . . . . 1 . 3 . . . . 2 . . . . . . . . 1 . Feedback Events 1 | . . . . . . . . . . . . . . . . . . . 1 . . . . . . . . . . Corruption 1 | . . . . . . . . . . . . . . . . . . . 1 . . . . . . . . . . Feedback Blocked . | . . . . . . . . . . . . . . . . . . . . . . . . . . . . . . Robot Schematics Acquired 1 | . . . . . . . . . . . . . . . . . . . . . . . . . . . . 1 . Robots Built . | . . . . . . . . . . . . . . . . . . . . . . . . . . . . . . Authchips . | . . . . . . . . . . . . . . . . . . . . . . . . . . . . . . Time . | . . . . . . . . . . . . . . . . . . . . . . . . . . . . . . Total Robot Build Rating . | . . . . . . . . . . . . . . . . . . . . . . . . . . . . . . Part Schematics Acquired 16 | . . . 2 . 1 . 2 . . . . . . . . . . . . . . 4 . . . . . 7 . Parts Built 2 | . . . . . . . . . . . . . . . . . . . . . . . . 2 . . . . . Authchips . | . . . . . . . . . . . . . . . . . . . . . . . . . . . . . . Time 46 | . . . . . . . . . . . . . . . . . . . . . . . . 46 . . . . . Total Part Build Rating 18 | . . . . . . . . . . . . . . . . . . . . . . . . 18 . . . . . Part Studies Acquired 13 | . . . 3 . 3 . 1 1 . . . 1 . . . . . . . . . . . 1 2 1 . . . Parts Repaired 1 | . . . . . 1 . . . . . . . . . . . . . . . . . . . . . . . . Time 38 | . . . . . 38 . . . . . . . . . . . . . . . . . . . . . . . . Parts Recycled . | . . . . . . . . . . . . . . . . . . . . . . . . . . . . . . Recycled Matter . | . . . . . . . . . . . . . . . . . . . . . . . . . . . . . . Retrieved Matter . | . . . . . . . . . . . . . . . . . . . . . . . . . . . . . . Retrieved Components 11 | . 6 . . . . . . . 1 . . 4 . . . . . . . . . . . . . . . . . Parts Scanalyzed 4 | . . . . . 2 . 2 . . . . . . . . . . . . . . . . . . . . . . Part Schematics Acquired 3 | . . . . . 1 . 2 . . . . . . . . . . . . . . . . . . . . . . Parts Damaged . | . . . . . . . . . . . . . . . . . . . . . . . . . . . . . . Bothacking | -11 -10 -10 -9 -9 -8 -8 -8 -7 -7 -7 -7 -5 -5 -5 -5 -5 -5 -4 -4 -4 -4 -4 -3 -3 -3 -2 -2 -2 -1 ------------ Run | Yrd Mat Min Mat Min Mat Gar Mat Fac Sto Rec Scr Fac Was Fac Upp Upp War Pro Fac Upp Upp Zhi Pro Res Qua Res Tes Frg Acc Used RIF Installer . | . . . . . . . . . . . . . . . . . . . . . . . . . . . . . . Robots Hacked 16 | . . . . 1 . . . 1 . . 11 . . . . . . . . . . 3 . . . . . . . Non-combat 3 | . . . . . . . . 1 . . 2 . . . . . . . . . . . . . . . . . . Combat 13 | . . . . 1 . . . . . . 9 . . . . . . . . . . 3 . . . . . . . Robot Hacks Applied 17 | . . . . 1 . . . 2 . . 11 . . . . . . . . . . 3 . . . . . . . parse_system 16 | . . . . 1 . . . 1 . . 11 . . . . . . . . . . 3 . . . . . . . find_chute 1 | . . . . . . . . 1 . . . . . . . . . . . . . . . . . . . . . Relay Couplers Released 35 | . . . . . . 34 1 . . . . . . . . . . . . . . . . . . . . . . Machine Destruction 35 | . . . . . . 34 1 . . . . . . . . . . . . . . . . . . . . . . Fabnet Peak Effective % . | . . . . . . . . . . . . . . . . . . . . . . . . . . . . . . Robots Rewired 17 | . . . . . . 11 . 1 . . . . . . . . 5 . . . . . . . . . . . . Allies Hacked 1 | . . . . . . . . . . . . . . . . . . . . . . . . 1 . . . . . Hacks Repelled . | . . . . . . . . . . . . . . . . . . . . . . . . . . . . . . Allies | -11 -10 -10 -9 -9 -8 -8 -8 -7 -7 -7 -7 -5 -5 -5 -5 -5 -5 -4 -4 -4 -4 -4 -3 -3 -3 -2 -2 -2 -1 -------- Run | Yrd Mat Min Mat Min Mat Gar Mat Fac Sto Rec Scr Fac Was Fac Upp Upp War Pro Fac Upp Upp Zhi Pro Res Qua Res Tes Frg Acc Total Allies 54 | . . . 2 . . 13 . 1 2 . . . 1 4 . . 5 . 10 1 . . . 1 . 4 . 6 4 Largest Group 8 | . . . 2 . . 8 8 1 2 . . . 1 4 . . 5 . 1 1 . . . 1 . 4 . 4 4 Highest-Rated Group 356 | . . . 19 . . 104 104 40 62 . . . 31 184 . . 302 . 47 58 . . . 139 . 236 . 356 328 Highest-Rated Ally 139 | . . . 10 . . 39 16 40 31 . . . 31 46 . . 68 . 47 58 . . . 139 . 59 . 139 82 Initial UFD Resources 87 | . . . . . . . . . . . . 38 58 58 64 64 64 67 67 83 83 83 87 87 82 85 85 85 . Initial Warlord ECA Mod 16 | . . . . . . . 16 15 15 15 15 . . . . . . . . . . . . . . . . . . Total Orders 6 | . . . . . . . . . . . . . . . . . 2 . 1 1 . . . . 1 . . 1 . FOLLOW 1 | . . . . . . . . . . . . . . . . . 1 . . . . . . . . . . . . GUARD 2 | . . . . . . . . . . . . . . . . . 1 . . . . . . . . . . 1 . EXPLORE 1 | . . . . . . . . . . . . . . . . . . . . . . . . . 1 . . . . RETURN 2 | . . . . . . . . . . . . . . . . . . . 1 1 . . . . . . . . . Ally Attacks 259 | . . . . . . 48 17 . 4 . . . 5 42 . . 11 . 27 5 . . . 29 . 24 . 46 1 Total Damage 8352 | . . . . . . 832 219 . 44 . . . 62 1690 . . 490 . 232 158 . . . 1960 . 854 . 1763 48 Kills 57 | . . . . . . 10 3 . . . . . . 11 . . 3 . . 1 . . . 17 . 3 . 8 1 Allies Corrupted 1 | . . . 1 . . . . . . . . . . . . . . . . . . . . . . . . . . Allies Melted 3 | . . . . . . . . . 1 . . . . . . . . . 1 1 . . . . . . . . . X0-1V1 Amusement Gains 560 | . 15 . 5 20 10 73 . 25 . . 50 40 . 5 . . . 20 14 20 12 . 50 . 10 10 . 142 39 Good Acts 175 | . 5 6 17 3 4 10 5 1 3 1 . 7 1 8 3 . 3 11 6 6 2 . 2 8 10 6 6 35 6 Bad Acts 179 | . 1 . 4 7 5 20 1 7 3 1 . 10 1 5 7 3 3 3 10 4 4 . . 7 8 3 14 39 9 Intel | -11 -10 -10 -9 -9 -8 -8 -8 -7 -7 -7 -7 -5 -5 -5 -5 -5 -5 -4 -4 -4 -4 -4 -3 -3 -3 -2 -2 -2 -1 ------- Run | Yrd Mat Min Mat Min Mat Gar Mat Fac Sto Rec Scr Fac Was Fac Upp Upp War Pro Fac Upp Upp Zhi Pro Res Qua Res Tes Frg Acc Active Infowar (turns) 2384 | 47 499 . . . 228 . 104 . . . . . . . . . 1 . 92 180 37 . . . . 175 209 485 327 Optics 956 | . 190 . . . . . 104 . . . . . . . . . . . 90 180 37 . . . . . . 28 327 Seismic 468 | 47 421 . . . . . . . . . . . . . . . . . . . . . . . . . . . . Machine Analysis 228 | . . . . . 228 . . . . . . . . . . . . . . . . . . . . . . . . Cloaking 3 | . . . . . . . . . . . . . . . . . 1 . 2 . . . . . . . . . . Jamming 841 | . . . . . . . . . . . . . . . . . . . . . . . . . . 175 209 457 . Robot Analysis Total 7 | . 1 . 2 . . . . . . . . . . . . . . . . . . 4 . . . . . . . Derelict Logs Recovered 11 | . . 1 . 1 . . . . . . . . . . 1 2 . 2 . 2 2 . . . . . . . . Drone Launches 5 | . . . . . . . . . . . . . . . . . . . 1 2 . . . . 2 . . . . Drone Recoveries 2 | . . . . . . . . . . . . . . . . . . . 1 1 . . . . . . . . . Exploration | -11 -10 -10 -9 -9 -8 -8 -8 -7 -7 -7 -7 -5 -5 -5 -5 -5 -5 -4 -4 -4 -4 -4 -3 -3 -3 -2 -2 -2 -1 ------------- Run | Yrd Mat Min Mat Min Mat Gar Mat Fac Sto Rec Scr Fac Was Fac Upp Upp War Pro Fac Upp Upp Zhi Pro Res Qua Res Tes Frg Acc Turns Passed 14198 | 112 1228 127 785 600 631 1371 402 149 110 15 1070 450 22 346 253 208 720 250 650 180 312 203 340 490 305 192 210 2106 361 Spaces Moved 25106 | 109 1344 270 1306 616 973 1490 766 419 270 56 2360 1069 83 1046 818 546 856 561 1153 444 490 177 325 643 812 593 892 3916 703 Core 690 | 106 520 . . . . . . . . . . . . . . . . . . . . . . 64 . . . . . Treads 3 | 3 . . . . . . . . . . . . . . . . . . . . . . . . . . . . . Legs . | . . . . . . . . . . . . . . . . . . . . . . . . . . . . . . Wheels 554 | . . . . . . . . . . . . . . . . . . . . . 179 177 198 . . . . . . Hover . | . . . . . . . . . . . . . . . . . . . . . . . . . . . . . . Flight 23859 | . 824 270 1306 616 973 1490 766 419 270 56 2360 1069 83 1046 818 546 856 561 1153 444 311 . 127 579 812 593 892 3916 703 Fastest Speed 7 | 50 37 34 34 34 30 29 20 26 26 26 26 23 23 23 24 27 27 34 19 21 34 90 42 17 19 19 19 7 29 Average Speed 30 | 53 52 39 34 34 31 31 28 26 26 26 26 23 23 23 24 27 28 34 30 30 54 97 79 32 23 20 19 24 32 Slowest Speed 160 | 160 150 40 37 34 104 105 29 26 26 26 92 23 23 90 27 27 98 34 109 34 90 110 125 120 26 22 22 108 108 Overloaded Moves 22 | . . . . . . . 6 . . . . . . . . . . . . . . . . . . . . 16 . Propulsion Burnouts . | . . . . . . . . . . . . . . . . . . . . . . . . . . . . . . Robots Hopped 160 | . 15 4 19 3 10 2 16 3 5 . 5 9 . 9 3 . 5 . 9 . . . . 1 4 3 10 19 6 Potential Cave-ins 15 | . . . . . . . . . . . 1 . . . . . . . . . . . . . 2 3 . 5 4 Cave-ins Triggered . | . . . . . . . . . . . . . . . . . . . . . . . . . . . . . . Teleports 2 | . . . . . . . . . . . . . . . . . . . . . . . . . . . . 1 1 Exploration Rate (%) 60 | 4 97 60 93 93 66 96 62 16 53 21 95 37 86 34 81 70 88 67 36 71 73 60 60 15 80 17 86 64 27 Regions Visited 29 Branch Regions 16 Pre-discovered Areas 9 | . 2 . 2 . . . . . . . . 1 . . . . . 1 . . . 3 . . . . . . . Known Exits Taken 17 | . . 1 1 1 1 . 1 1 1 . . . . 1 . 1 . 1 1 1 . . 1 1 1 1 . 1 . Unknown Exits Taken 9 | 1 1 . . . . . . . . 1 1 . . . 1 . 1 . . . 1 1 . . . . 1 . . Scrap Searched 19 | . . . . 1 . . . . . . 7 . . . 1 3 . 4 . 1 1 . 1 . . . . . . Spaces Dug 316 | . . . 1 . 7 17 . . 7 . 13 9 . 60 2 . . . 29 . 65 . 9 2 12 14 22 36 11 Terrain Destroyed 667 | . . 2 1 . 13 29 3 . 7 . 13 11 . 110 9 15 2 5 91 . 92 . 29 2 12 14 22 113 72 Melee 54 | . . . 1 . . 1 . . 7 . . 9 . 8 2 . . . 8 . 1 . . 2 8 5 . 2 . Projectile 193 | . . . . . . . 3 . . . . 2 . . 7 15 2 5 19 . . . 11 . . . . 84 45 AOE 360 | . . 2 . . 13 28 . . . . . . . 99 . . . . 64 . 91 . 18 . . . 19 10 16 Terrain Rammed . | . . . . . . . . . . . . . . . . . . . . . . . . . . . . . . Walls Destroyed . | . . . . . . . . . . . . . . . . . . . . . . . . . . . . . . Machines Disabled . | . . . . . . . . . . . . . . . . . . . . . . . . . . . . . . Actions | -11 -10 -10 -9 -9 -8 -8 -8 -7 -7 -7 -7 -5 -5 -5 -5 -5 -5 -4 -4 -4 -4 -4 -3 -3 -3 -2 -2 -2 -1 --------- Run | Yrd Mat Min Mat Min Mat Gar Mat Fac Sto Rec Scr Fac Was Fac Upp Upp War Pro Fac Upp Upp Zhi Pro Res Qua Res Tes Frg Acc Total 29897 | 141 1756 286 1517 981 1179 2094 869 448 287 55 2795 1187 84 1114 844 575 1304 611 1342 474 525 197 372 884 897 642 913 4731 793 Wait 2496 | 6 326 6 123 349 110 163 52 . . . 381 27 1 12 8 15 367 29 59 3 7 . 9 172 36 22 1 210 2 Move 24772 | 108 1313 262 1268 609 953 1484 735 412 260 55 2350 1053 82 1028 811 545 845 560 1135 443 489 176 324 640 804 588 871 3879 690 Hop 142 | . 15 3 18 3 9 1 14 3 4 . 4 7 . 8 3 . 5 . 8 . . . . 1 3 1 10 16 6 Pick Up 242 | 3 15 4 14 2 9 17 5 7 2 . 11 13 . 6 3 1 3 8 10 . 2 3 . 2 8 . 3 76 15 Fast Attach 170 | 7 5 2 1 . 4 10 1 4 1 . 3 4 1 4 2 1 3 . 19 2 1 3 3 21 11 4 7 38 8 Attach 124 | . 5 . 2 1 2 13 . 1 . . 2 6 . 2 . . 2 . 6 2 4 3 3 4 1 . . 45 20 Detach 61 | 2 2 . . . . 1 . . . . . . . 1 . . 2 . 4 1 4 . 2 4 1 . . 30 7 Swap 302 | 1 7 2 20 4 18 34 20 10 6 . 15 23 . 21 4 . 7 2 18 5 . 4 . 3 5 12 6 53 2 Drop 322 | 1 16 6 18 2 18 14 10 6 3 . 12 16 . 14 3 1 6 8 23 8 2 . . 15 12 5 4 92 7 Fire 609 | 13 52 1 52 10 56 88 12 2 . . . 16 . 7 6 12 6 4 20 . 6 . 21 . . . 1 188 36 Melee 310 | . . . 1 1 . 90 20 3 11 . 17 22 . 10 4 . . . 40 10 10 8 10 22 16 10 2 3 . Ram . | . . . . . . . . . . . . . . . . . . . . . . . . . . . . . . Kick . | . . . . . . . . . . . . . . . . . . . . . . . . . . . . . . Crush . | . . . . . . . . . . . . . . . . . . . . . . . . . . . . . . Escape Stasis 280 | . . . . . . 170 . . . . . . . 1 . . . . . . . . . . . . 8 101 . Rewire 50 | . . . . . . . . . . . . . . . . . 50 . . . . . . . . . . . . Trap . | . . . . . . . . . . . . . . . . . . . . . . . . . . . . . . Miscellaneous 17 | . . . . . . 9 . . . . . . . . . . 8 . . . . . . . . . . . . Route ------- -11/Scrapyard -10/Materials (discovered 5 exits: *Mat x3 / [*Min] / *Sub) -10/Mines (discovered 4 exits: *Mat x2 / Exi / Sub) -9/Materials (discovered 5 exits: *Mat x3 / *Min x2) -9/Mines (discovered 3 exits: *Mat x2 / [*Zio]) -8/Materials (discovered 2 exits: Fac / Gar) -8/Garrison (discovered 4 exits: *Mat x4) -8/Materials (discovered 2 exits: *Fac x2) -7/Factory -7/Storage (discovered 2 exits: Fac / *Rec) -7/Recycling -7/Scraptown (discovered 2 exits: *Fac x2) -5/Factory (discovered 5 exits: *Fac x3 / *Upp / Ext) -5/Waste -5/Factory (discovered 7 exits: *Fac x3 / *Upp x2 / *Ext x2) -5/Upper Caves -5/Upper Caves (discovered 2 exits: *Fac / *War) -5/Warlord -4/Proximity Caves -4/Factory (discovered 5 exits: *Res x2 / *Upp x2 / Arm) -4/Upper Caves -4/Upper Caves -4/Zhirov -3/Proximity Caves -3/Research -3/Quarantine -2/Research (discovered 3 exits: Acc / *Tes x2) -2/Testing (discovered 3 exits: *Acc / [*Sec] / *Frg) -2/Protoforge -1/Access To Epsilon Eridani History --------- Turn | Location | Event 6 | -11/Scrapyard | Discovered new exit (range 15) 113 | -11/Scrapyard | Entered Materials 245 | -10/Materials | Discovered new exit (range 14) 306 | -10/Materials | Build established: Mutant 688 | -10/Materials | Discovered new exit (range 6) 691 | -10/Materials | Discovered new exit (range 16) 713 | -10/Materials | Derelicts attacked the area 735 | -10/Materials | Discovered new exit (range 10) 948 | -10/Materials | Learned location of 2 exits from Subcaves 999 | -10/Materials | Learned location of 1 exit from Storage 1039 | -10/Materials | Learned Storage trap positions 1067 | -10/Materials | Learned location of 2 exits from Mines 1104 | -10/Materials | Learned location of 2 exits from Subcaves 1181 | -10/Materials | Discovered new exit (range 7) 1183 | -10/Materials | Prayed at D.C.S.S. Altar Unit 1192 | -10/Materials | Energy capacity permanently improved by X0-1V1 (+200; -100 max core) 1203 | -10/Materials | X0-1V1 mutated your Weapon slot to Propulsion slot 1212 | -10/Materials | Learned location of 1 exit from Storage 1228 | -10/Materials | X0-1V1 activates XOMVISION 1262 | -10/Materials | Core integrity permanently improved by X0-1V1 (+350) 1341 | -10/Materials | Entered Mines 1342 | -10/Mines | Identified exit to Subcaves 1342 | -10/Mines | Identified exit to Materials 1348 | -10/Mines | Received a Rocket Launcher from a helpful Derelict 1358 | -10/Mines | X0-1V1 activates XOMVISION 1384 | -10/Mines | Mass support permanently improved by X0-1V1 (+14; -280 max core) 1408 | -10/Mines | Found a Scrap Suit stashed away for nefarious purposes 1409 | -10/Mines | Learned Materials stockpile data 1416 | -10/Mines | Joined a pair of Derelicts in attacking an 0b10 outpost 1428 | -10/Mines | Identified exit to Exiles 1428 | -10/Mines | X0-1V1 revealed exit location to -10/Exiles 1462 | -10/Mines | X0-1V1 revealed exit location to -9/Materials 1468 | -10/Mines | Entered Materials 1468 | -9/Materials | Evolved 2 slots: Weapon x2 1469 | -9/Materials | Identified exit to Mines 1713 | -9/Materials | Identified exit to Materials 1713 | -9/Materials | X0-1V1 revealed exit location to -8/Materials 1720 | -9/Materials | X0-1V1 foreshadows a heat wave 1741 | -9/Materials | X0-1V1 sent you to a vault 1755 | -9/Materials | X0-1V1 activates XOMVISION 1802 | -9/Materials | Ambient heat levels rising (+10) 1868 | -9/Materials | Search patrols dispatched 1877 | -9/Materials | Ambient heat levels rising (+10) 1884 | -9/Materials | Discovered exit to Materials (range 20) 1921 | -9/Materials | Build established: Gunner 1959 | -9/Materials | Ambient heat levels falling (-10) 2030 | -9/Materials | Learned 2 Storage zone layouts 2035 | -9/Materials | Ambient heat levels falling (-10) 2076 | -9/Materials | Learned 2 Materials zone layouts 2089 | -9/Materials | Discovered exit to Materials (range 12) 2111 | -9/Materials | Learned Materials stockpile data 2211 | -9/Materials | X0-1V1 activates XOMVISION 2253 | -9/Materials | Entered Mines 2269 | -9/Mines | Found the Drone Emporium 2272 | -9/Mines | Found Prototype Device 2283 | -9/Mines | YI-UF0 nonchalantly dropped a Grenade Launcher on the ground 2304 | -9/Mines | Assembled infested the area 2698 | -9/Mines | X0-1V1 sent hostile G-34 Mercenary (x4) 2711 | -9/Mines | X0-1V1 sent you into danger 2737 | -9/Mines | A Derelict revealed a hidden shortcut to a safe place 2759 | -9/Mines | Discovered exit to Materials (range 8) 2787 | -9/Mines | X0-1V1 sent hostile S-10 Pest (x3) 2834 | -9/Mines | X0-1V1 revealed exit location to -8/Materials 2840 | -9/Mines | X0-1V1 added 0b10 threat records associated with you (minor) 2853 | -9/Mines | Entered Materials 2853 | -8/Materials | Evolved 2 slots: Utility x1, Weapon x1 2959 | -8/Materials | System corruption reached 10% 3042 | -8/Materials | Central database locked down 3128 | -8/Materials | Identified Decoy Drone Bay 3130 | -8/Materials | X0-1V1 added 0b10 threat records associated with you (considerable) 3297 | -8/Materials | Repaired Lgt. Nuclear Core+ 3369 | -8/Materials | Build established: Sprinter 3377 | -8/Materials | Identified exit to Garrison 3445 | -8/Materials | X0-1V1 enhanced Transport squad support 3452 | -8/Materials | Identified exit to Factory 3474 | -8/Materials | Garrison activated, responded to threat 3484 | -8/Materials | Entered Garrison 3492 | -8/Garrison | Triggered checkpoint 3508 | -8/Garrison | Triggered checkpoint 3564 | -8/Garrison | Garrison Relay disabled 3603 | -8/Garrison | Imp. VTOL Module reconfigured into Item Mimic 3672 | -8/Garrison | X0-1V1 sent hostile H-55 Commando (x3) 3699 | -8/Garrison | Core integrity fell below 50% 3709 | -8/Garrison | Core integrity fell below 20% 3720 | -8/Garrison | X0-1V1 rescued you from certain death 3721 | -8/Garrison | Garrison Relay disabled 3722 | -8/Garrison | Triggered checkpoint 3732 | -8/Garrison | Lost 6 parts (1n1u4w) 3739 | -8/Garrison | Triggered checkpoint 3746 | -8/Garrison | Discovered new exit (range 9) 3758 | -8/Garrison | Attempted to access garrison exit controls, blocked by remote lockdown 3760 | -8/Garrison | Identified exit to Materials 3777 | -8/Garrison | X0-1V1 revealed exit location to -8/Materials 3792 | -8/Garrison | Garrison Relay disabled 3896 | -8/Garrison | Lost 3 allies 4051 | -8/Garrison | Triggered checkpoint 4093 | -8/Garrison | Destroyed 7 combat bots 4124 | -8/Garrison | Triggered checkpoint 4228 | -8/Garrison | Rescued a captive Derelict 4235 | -8/Garrison | Rescued a captive Derelict 4263 | -8/Garrison | Garrison Relay disabled 4301 | -8/Garrison | X0-1V1 upgraded hostiles (x1) 4339 | -8/Garrison | System corruption reached 30% 4354 | -8/Garrison | X0-1V1 activates XOMVISION 4426 | -8/Garrison | Garrison Relay disabled 4435 | -8/Garrison | X0-1V1 sent hostile H-55 Commando (x3) 4479 | -8/Garrison | Build established: Scavenger-Sprinter 4498 | -8/Garrison | Core integrity restored by X0-1V1 (+124) 4512 | -8/Garrison | Garrison Relay disabled 4515 | -8/Garrison | Garrison Relay disabled 4519 | -8/Garrison | Garrison Relay disabled 4521 | -8/Garrison | Garrison Relay disabled 4560 | -8/Garrison | Lost 3 parts (1p1n1w) 4620 | -8/Garrison | Phase Generator disabled 4855 | -8/Garrison | Entered Materials 4855 | -8/Materials | Accompanied by 8 allies 4884 | -8/Materials | X0-1V1 released a cloud of subatomizers 5014 | -8/Materials | Build established: Commander-Sprinter 5016 | -8/Materials | Central database locked down 5095 | -8/Materials | X0-1V1 sent you to a vault 5114 | -8/Materials | Discovered exit to Factory (range 10) 5215 | -8/Materials | Discovered exit to Factory (range 7) 5218 | -8/Materials | Identified exit to Garrison 5255 | -8/Materials | First assault squad dispatched 5257 | -8/Materials | Entered Factory 5257 | -7/Factory | Evolved 2 slots: Propulsion x1, Utility x1 5258 | -7/Factory | Identified exit to Storage 5301 | -7/Factory | X0-1V1 enhanced Transport squad support 5301 | -7/Factory | Watched by a mysterious "MATRIX" hacker 5340 | -7/Factory | X0-1V1 tapped a No Entrance sign 5385 | -7/Factory | System corruption reached 10% 5404 | -7/Factory | Gauss Rifle+ reconfigured into Item Mimic 5406 | -7/Factory | Entered Storage 5407 | -7/Storage | Identified exit to Recycling 5408 | -7/Storage | Identified exit to Factory 5410 | -7/Storage | Loaded intel: 19 trap records 5446 | -7/Storage | Met a pair of Derelict thieves 5451 | -7/Storage | X0-1V1 sent you into danger 5516 | -7/Storage | Used back door to open Recycling access 5516 | -7/Storage | Entered Recycling 5525 | -7/Recycling | Scanned before Scraplab entrance 5526 | -7/Recycling | X0-1V1 sent hostile P-60 Hacker (x3) 5528 | -7/Recycling | Entered Scraplab 5531 | -7/Recycling | Discovered new exit (range 2) 5531 | -7/Recycling | Entered Scraptown 5531 | -7/Scraptown | System corruption cleaned by C-Scrubber 5584 | -7/Scraptown | Discovered new exit (range 7) 5608 | -7/Scraptown | Visited CPS Storage 5609 | -7/Scraptown | Visited Cyclists 5617 | -7/Scraptown | Visited Symbiants 5634 | -7/Scraptown | Visited TADAMA 5640 | -7/Scraptown | Visited Assassins FH 5653 | -7/Scraptown | Build established: Sprinter 5659 | -7/Scraptown | Visited The Evicted 5665 | -7/Scraptown | Visited Shadow of the Wyrm 5710 | -7/Scraptown | Visited UFD Registry 5710 | -7/Scraptown | Registered with UFD as "Fiberbox" 5719 | -7/Scraptown | Visited LU-1G1's Boring Crew 5730 | -7/Scraptown | Visited DA-N13 Charitable Foundation 5735 | -7/Scraptown | Visited Chapter 10 5745 | -7/Scraptown | Visited Science Guys 5755 | -7/Scraptown | Visited Scrapoid Research Area 5763 | -7/Scraptown | Visited Scrap Suit Storage 5770 | -7/Scraptown | Visited Supply Room 5823 | -7/Scraptown | Visited Science Testing Area 5842 | -7/Scraptown | Entered Cyclist Reading Room 6115 | -7/Scraptown | Found DCF Scrap (28 items) 6134 | -7/Scraptown | Met Optimus 6134 | -7/Scraptown | Accepted into 0bPrime 6534 | -7/Scraptown | Civil war broke out across Scraptown 6540 | -7/Scraptown | Found Prototype Special Weapon 6549 | -7/Scraptown | Identified LU-1G1's Laser Shovel 6590 | -7/Scraptown | Found Master Drone Bay 6600 | -7/Scraptown | Discovered new exit (range 2) 6601 | -7/Scraptown | Entered Factory 6601 | -5/Factory | Evolved 4 slots: Power x1, Propulsion x1, Utility x1, Weapon x1 6618 | -5/Factory | Lost 5 allies 6632 | -5/Factory | Loaded intel: 8 recycling unit locations 6648 | -5/Factory | X0-1V1 sent you to a vault 6651 | -5/Factory | Found Prototype Device 6651 | -5/Factory | Identified Exp. Focal Shield 6692 | -5/Factory | Learned location of Protoforge (-2) 6703 | -5/Factory | Discovered new exit (range 15) 6731 | -5/Factory | Discovered new exit (range 11) 6851 | -5/Factory | Identified exit to Extension 6851 | -5/Factory | X0-1V1 revealed exit location to -5/Extension 6901 | -5/Factory | Search patrols dispatched 6905 | -5/Factory | X0-1V1 enhanced Transport squad support 6957 | -5/Factory | Discovered new exit (range 14) 6957 | -5/Factory | Spotted B-75 Beast 7016 | -5/Factory | X0-1V1 added 0b10 threat records associated with you (major) 7017 | -5/Factory | X0-1V1 redirected Transport squads to designated parking area 7033 | -5/Factory | X0-1V1 added 0b10 threat records associated with you (major) 7037 | -5/Factory | Discovered new exit (range 10) 7051 | -5/Factory | Manually triggered Chute Trap 7051 | -5/Factory | Sucked down chute 7051 | -5/Factory | Entered Waste 7052 | -5/Waste | Met a frightened Derelict 7054 | -5/Waste | Spotted C-40 Crusher 7054 | -5/Waste | Spotted C-40 Crusher 7055 | -5/Waste | Spotted C-40 Crusher 7059 | -5/Waste | Spotted C-40 Crusher 7059 | -5/Waste | Spotted C-40 Crusher 7062 | -5/Waste | Spotted C-40 Crusher 7066 | -5/Waste | EMP discharged 7071 | -5/Waste | Discovered new exit (range 10) 7073 | -5/Waste | Entered Factory 7082 | -5/Factory | X0-1V1 revealed exit location to -5/Extension 7104 | -5/Factory | X0-1V1 sent you to a vault 7110 | -5/Factory | Discovered new exit (range 5) 7120 | -5/Factory | Identified exit to Factory 7120 | -5/Factory | X0-1V1 revealed exit location to -4/Factory 7150 | -5/Factory | Identified exit to Upper Caves 7168 | -5/Factory | System corruption reached 10% 7213 | -5/Factory | Weapon slot count temporarily expanded by X0-1V1 (+1) 7248 | -5/Factory | Loaded intel: 8 recycling unit locations 7346 | -5/Factory | X0-1V1 enhanced Transport squad support 7377 | -5/Factory | X0-1V1 revealed exit location to -4/Factory 7419 | -5/Factory | Entered Upper Caves 7420 | -5/Upper Caves | X0-1V1 sent hostile X-62 Marksman (x2) 7452 | -5/Upper Caves | X0-1V1 vaporized surrounding terrain (radius 17) 7453 | -5/Upper Caves | Ambushed by wild Derelicts 7537 | -5/Upper Caves | Encountered a Warlord checkpoint 7636 | -5/Upper Caves | X0-1V1 mutated your Propulsion slot to Weapon slot 7661 | -5/Upper Caves | Discovered new exit (range 6) 7666 | -5/Upper Caves | Attracted the attention of an 0b10 checkpoint 7672 | -5/Upper Caves | Entered another Upper Caves area 7673 | -5/Upper Caves | Identified exit to Warlord 7684 | -5/Upper Caves | Discovered exit to Factory (range 9) 7684 | -5/Upper Caves | Learned Factory emergency access door positions 7723 | -5/Upper Caves | Attracted the attention of an 0b10 checkpoint 7734 | -5/Upper Caves | Learned Factory emergency access door positions 7798 | -5/Upper Caves | X0-1V1 sent you into danger 7880 | -5/Upper Caves | Entered Warlord 7889 | -5/Warlord | System corruption cleaned by Quarantine Array 8073 | -5/Warlord | Found Prototype Device 8073 | -5/Warlord | Identified Exp. Cloaking Device 8113 | -5/Warlord | Warlord's base attacked by MAIN.C 8132 | -5/Warlord | Rebuked by Warlord 8160 | -5/Warlord | Found Prototype Piercing Weapon 8160 | -5/Warlord | Identified Vortex Lance 8297 | -5/Warlord | Build established: Commander-Sprinter 8463 | -5/Warlord | Warlord forces counterattacked 8508 | -5/Warlord | Core integrity restored by X0-1V1 (+281) 8578 | -5/Warlord | Spotted Striker 8597 | -5/Warlord | Discovered new exit (range 9) 8600 | -5/Warlord | Entered Proximity Caves 8602 | -4/Proximity Caves | Attracted the attention of an 0b10 checkpoint 8623 | -4/Proximity Caves | Lost 4 allies 8643 | -4/Proximity Caves | Attracted the attention of an 0b10 outpost 8652 | -4/Proximity Caves | Learned Research emergency access door positions 8654 | -4/Proximity Caves | Learned location of Armory (-4) 8682 | -4/Proximity Caves | X0-1V1 vaporized surrounding terrain (radius 22) 8705 | -4/Proximity Caves | X0-1V1 activates XOMVISION 8733 | -4/Proximity Caves | Discovered exit to Factory (range 14) 8850 | -4/Proximity Caves | Entered Factory 8850 | -4/Factory | Evolved 2 slots: Propulsion x2 8867 | -4/Factory | Loaded intel: 8 recycling unit locations 8942 | -4/Factory | Identified exit to Upper Caves 8942 | -4/Factory | Identified exit to Armory 9066 | -4/Factory | X0-1V1 sent hostile Thug (x3) 9175 | -4/Factory | X0-1V1 sent you to a vault 9198 | -4/Factory | Found Prototype Launcher 9198 | -4/Factory | Identified Tactical Quantum Warhead 9201 | -4/Factory | Found Prototype Device 9201 | -4/Factory | Identified Adv. Kinecellerator 9207 | -4/Factory | Found Prototype Launcher 9207 | -4/Factory | Identified Ragnarok Missile Launcher 9210 | -4/Factory | Found Chaos Jack 9213 | -4/Factory | Found Chaos Jack 9232 | -4/Factory | Lost 4 parts (1u3w) 9265 | -4/Factory | Discovered new exit (range 8) 9276 | -4/Factory | X0-1V1 activates XOMVISION 9292 | -4/Factory | X0-1V1 sent you into danger 9335 | -4/Factory | Found Prototype Processor 9335 | -4/Factory | Identified Exp. Signal Interpreter 9350 | -4/Factory | Search patrols dispatched 9354 | -4/Factory | Garrison activated, responded to threat 9361 | -4/Factory | Master Drone dominated S-27 Virus 9362 | -4/Factory | Master Drone dominated C-35 Carver 9370 | -4/Factory | Master Drone dominated P-70 Sage 9378 | -4/Factory | Master Drone dominated S-27 Virus 9383 | -4/Factory | Master Drone dominated S-27 Virus 9387 | -4/Factory | Lost 5 parts (4n1u) 9413 | -4/Factory | Lost 4 allies 9418 | -4/Factory | Master Drone dominated G-67 Veteran 9422 | -4/Factory | Master Drone dominated G-67 Veteran 9429 | -4/Factory | Master Drone dominated G-67 Veteran 9431 | -4/Factory | Build established: Scavenger-Sprinter 9438 | -4/Factory | Master Drone dominated G-67 Veteran 9442 | -4/Factory | X0-1V1 added 0b10 threat records associated with you (minor) 9466 | -4/Factory | Identified exit to Research 9466 | -4/Factory | X0-1V1 revealed exit location to -3/Research 9468 | -4/Factory | Lost 4 allies 9500 | -4/Factory | Entered Upper Caves 9503 | -4/Upper Caves | Master Drone dominated G-73 Enforcer 9574 | -4/Upper Caves | Spotted B-86 Titan 9580 | -4/Upper Caves | Identified exit to Upper Caves 9580 | -4/Upper Caves | X0-1V1 revealed exit location to -4/Upper Caves 9601 | -4/Upper Caves | X0-1V1 sent you into danger 9603 | -4/Upper Caves | Learned Research terminal intel 9609 | -4/Upper Caves | Learned Research garrison access intel 9611 | -4/Upper Caves | Attracted the attention of an 0b10 outpost 9680 | -4/Upper Caves | Entered another Upper Caves area 9717 | -4/Upper Caves | X0-1V1 mutated your Utility slot to Propulsion slot 9731 | -4/Upper Caves | Learned Research security intel 9786 | -4/Upper Caves | Learned Research garrison access intel 9808 | -4/Upper Caves | X0-1V1 upgraded hostiles (x1) 9834 | -4/Upper Caves | Destroyed 8 combat bots 9906 | -4/Upper Caves | Lost 4 parts (1p1n1u1w) 9987 | -4/Upper Caves | Discovered new exit (range 5) 9992 | -4/Upper Caves | Entered Zhirov 9992 | -4/Zhirov | Discovered new exit (range 3) 10009 | -4/Zhirov | Met Zhirov 10025 | -4/Zhirov | Learned location of Quarantine (-3) 10025 | -4/Zhirov | Learned location of Testing (-2) 10025 | -4/Zhirov | Learned location of Command (-1) 10033 | -4/Zhirov | Zhirov requested help retrieving the SGEMP Prototype 10047 | -4/Zhirov | Found Alien Artifact 10047 | -4/Zhirov | Identified Integrated Reactor 10047 | -4/Zhirov | Installed Integrated Reactor, increased core energy generation (+10) 10059 | -4/Zhirov | Found Alien Artifact 10162 | -4/Zhirov | Build established: Mutant 10195 | -4/Zhirov | Entered Proximity Caves 10248 | -3/Proximity Caves | Lost 4 parts (1p3w) 10274 | -3/Proximity Caves | X0-1V1 revealed exit location to -3/Research 10292 | -3/Proximity Caves | Spotter reported a threat 10345 | -3/Proximity Caves | Spotter reported a threat 10348 | -3/Proximity Caves | Attracted the attention of an 0b10 checkpoint 10384 | -3/Proximity Caves | Spotter reported a threat 10436 | -3/Proximity Caves | Lost 3 parts (1p1u1w) 10437 | -3/Proximity Caves | Spotter reported a threat 10535 | -3/Proximity Caves | Entered Research 10535 | -3/Research | Evolved 2 slots: Propulsion x1, Utility x1 10538 | -3/Research | Loaded intel: 24 terminal locations 10539 | -3/Research | Loaded intel: 4 garrison access locations 10561 | -3/Research | Scraphulk reinforcements arrived 10653 | -3/Research | Spotted B-86 Titan 10683 | -3/Research | X0-1V1 activates XOMVISION 10785 | -3/Research | Search patrols dispatched 10803 | -3/Research | Found Adv. Powered Armor 10836 | -3/Research | X0-1V1 activates XOMVISION 10872 | -3/Research | Fabricated Lgt. Quantum Reactor (x2) 11003 | -3/Research | Found Fusion Bomb Launcher 11015 | -3/Research | Identified exit to Quarantine 11015 | -3/Research | X0-1V1 revealed exit location to -3/Quarantine 11018 | -3/Research | X0-1V1 enhanced Transport squad support 11023 | -3/Research | Found Fusion Bomb Launcher 11025 | -3/Research | Entered Quarantine 11030 | -3/Quarantine | Found Alien Artifact 11038 | -3/Quarantine | X0-1V1 added 0b10 threat records associated with you (major) 11065 | -3/Quarantine | X0-1V1 announced a LAN party 11100 | -3/Quarantine | System corruption reached 10% 11105 | -3/Quarantine | Found Alien Energy Cannon 11126 | -3/Quarantine | Cryocooling Duct disabled 11141 | -3/Quarantine | Ambient heat levels rising (+20) 11141 | -3/Quarantine | Non-combat units ordered to evacuate 11160 | -3/Quarantine | Found Alien Impact Weapon 11163 | -3/Quarantine | Identified exit to Research 11163 | -3/Quarantine | X0-1V1 revealed exit location to -2/Research 11260 | -3/Quarantine | Build established: Scavenger-Sprinter 11263 | -3/Quarantine | Spotted Alpha 7 11275 | -3/Quarantine | First assault squad dispatched 11330 | -3/Quarantine | Entered Research 11330 | -2/Research | Evolved 2 slots: Utility x2 11331 | -2/Research | Loaded intel: 4 garrison access locations 11335 | -2/Research | Identified exit to Access 11335 | -2/Research | X0-1V1 revealed exit location to -1/Access 11338 | -2/Research | X0-1V1 announced a LAN party 11343 | -2/Research | X0-1V1 activates XOMVISION 11343 | -2/Research | X0-1V1 sent you to a vault 11448 | -2/Research | Central database locked down 11448 | -2/Research | Identified Transdimensional Reconstructor 11448 | -2/Research | Identified Core Stripper 11449 | -2/Research | Found Exp. Transmission Jammer 11474 | -2/Research | Identified exit to Testing 11474 | -2/Research | X0-1V1 activates XOMVISION 11494 | -2/Research | X0-1V1 added 0b10 threat records associated with you (considerable) 11522 | -2/Research | Entered Testing 11537 | -2/Testing | Adv. Component Analysis Suite reconfigured into Item Mimic 11552 | -2/Testing | X0-1V1 revealed exit location to -1/Access 11647 | -2/Testing | X0-1V1 added 0b10 threat records associated with you (major) 11718 | -2/Testing | Spotted Fortress 11722 | -2/Testing | X0-1V1 activates XOMVISION 11731 | -2/Testing | Discovered new exit (range 7) 11731 | -2/Testing | Discovered new exit (range 6) 11732 | -2/Testing | Entered Protoforge 11733 | -2/Protoforge | Spotted Hotshot 11747 | -2/Protoforge | X0-1V1 sent you to a vault 11793 | -2/Protoforge | Discovered exit to Access (range 5) 11806 | -2/Protoforge | Superfortress began startup sequence 11807 | -2/Protoforge | Spotted Hotshot 11807 | -2/Protoforge | Spotted Hotshot 11813 | -2/Protoforge | Spotted B-90 Cyclops 11822 | -2/Protoforge | Identified Core Cannon 11824 | -2/Protoforge | Additional patrols dispatched to research labs 11834 | -2/Protoforge | Found Prototype Ballistic Gun 11861 | -2/Protoforge | X0-1V1 vaporized surrounding terrain (radius 23) 11863 | -2/Protoforge | Spotted EXE-6 11863 | -2/Protoforge | Spotted EXE-6 11870 | -2/Protoforge | UFD initiated attack on Protoforge (Readiness: Very Low) 11870 | -2/Protoforge | Loaded intel: 3 recycling unit locations 11873 | -2/Protoforge | X0-1V1 announced a LAN party 11888 | -2/Protoforge | Scraphulk reinforcements arrived 11906 | -2/Protoforge | Optimus greeted in Protoforge 11907 | -2/Protoforge | Identified Cep. XC Strikerail 11938 | -2/Protoforge | Found Cep. XC Strikerail 11945 | -2/Protoforge | Found Prototype Device 11945 | -2/Protoforge | Identified Exp. Kinecellerator 11946 | -2/Protoforge | Forge Plexus network access discovered 11952 | -2/Protoforge | Found Exp. Core Analyzer 11956 | -2/Protoforge | Found Exp. Core Analyzer 11980 | -2/Protoforge | X0-1V1 mutated your Weapon slot to Utility slot 12005 | -2/Protoforge | Found Cep. XC Strikerail 12007 | -2/Protoforge | Found Cep. XC Strikerail 12011 | -2/Protoforge | Found Cep. XC Strikerail 12013 | -2/Protoforge | Found Cep. XC Strikerail 12015 | -2/Protoforge | Found Cep. XC Strikerail 12032 | -2/Protoforge | X0-1V1 activates XOMVISION 12053 | -2/Protoforge | Found Cep. NT7 Matterbank 12054 | -2/Protoforge | Found Cep. Antigrav Storage Unit 12061 | -2/Protoforge | Found Crosscalibrator 12088 | -2/Protoforge | Spotted Decapitator 12088 | -2/Protoforge | Spotted Decapitator 12088 | -2/Protoforge | Spotted Decapitator 12113 | -2/Protoforge | X0-1V1 mutated your Utility slot to Power slot 12121 | -2/Protoforge | Spotted Immortal 12122 | -2/Protoforge | Spotted Immortal 12141 | -2/Protoforge | Destroyed Immortal 12148 | -2/Protoforge | Destroyed Immortal 12190 | -2/Protoforge | Found Cep. Hardlight Director 12199 | -2/Protoforge | Spotted AP7-3 12199 | -2/Protoforge | Spotted AP7-3 12216 | -2/Protoforge | Destroyed AP7-3 12244 | -2/Protoforge | Destroyed AP7-3 12265 | -2/Protoforge | Found Cep. XC Strikerail 12273 | -2/Protoforge | Found Prototype Processor 12273 | -2/Protoforge | Identified Exp. Targeting Computer 12276 | -2/Protoforge | Found Prototype Processor 12276 | -2/Protoforge | Identified Exp. Target Analyzer 12281 | -2/Protoforge | Found Faulty Cep. Core Analysis Suite 12282 | -2/Protoforge | Found Cep. Core Analysis Suite 12283 | -2/Protoforge | Found Faulty Cep. Cloak Mesh 12285 | -2/Protoforge | Found Cep. Cloak Mesh 12286 | -2/Protoforge | Found Cep. Cloak Mesh 12288 | -2/Protoforge | Found Faulty Cep. Blasthammer 12289 | -2/Protoforge | Found Cep. Thermoelectric Network 12290 | -2/Protoforge | Found Cep. Blasthammer 12335 | -2/Protoforge | System corruption reached 10% 12343 | -2/Protoforge | Found Transdimensional Reconstructor 12351 | -2/Protoforge | Found Cep. Navigation Harness 12366 | -2/Protoforge | Found Cep. Reaction Jets 12371 | -2/Protoforge | Spotted V666-q 12371 | -2/Protoforge | Spotted V869-o 12371 | -2/Protoforge | Spotted V020-f 12371 | -2/Protoforge | Spotted V592-p 12371 | -2/Protoforge | X0-1V1 sent you into danger 12384 | -2/Protoforge | Destroyed V666-q 12387 | -2/Protoforge | Warped through subspace 12388 | -2/Protoforge | Found Faulty Cep. XC Strikerail 12390 | -2/Protoforge | Found Faulty Cep. XC Strikerail 12393 | -2/Protoforge | X0-1V1 activates XOMVISION 12432 | -2/Protoforge | Destroyed 8 combat bots 12438 | -2/Protoforge | Destroyed B-90 Cyclops 12476 | -2/Protoforge | Found 0bPrime Scrap Suit 12542 | -2/Protoforge | Spotted Striker 12543 | -2/Protoforge | Found 0bPrime Scrap Suit 12554 | -2/Protoforge | Spotted Striker 12581 | -2/Protoforge | X0-1V1 activates XOMVISION 12592 | -2/Protoforge | Lost 3 allies 12687 | -2/Protoforge | X0-1V1 added 0b10 threat records associated with you (minor) 12696 | -2/Protoforge | Identified Subatomic Replicator 12696 | -2/Protoforge | Used Subatomic Replicator to replicate Cep. Thermoelectric Network 12725 | -2/Protoforge | Spotted Executioner 12725 | -2/Protoforge | Spotted Striker 12725 | -2/Protoforge | Spotted Striker 12725 | -2/Protoforge | X0-1V1 sent you into danger 12729 | -2/Protoforge | Spotted Executioner 12733 | -2/Protoforge | Spotted Striker 12769 | -2/Protoforge | Spotted Executioner 12770 | -2/Protoforge | Lost 7 allies 12770 | -2/Protoforge | Spotted Striker 12771 | -2/Protoforge | Spotted Executioner 12779 | -2/Protoforge | Destroyed Striker 12783 | -2/Protoforge | Destroyed Executioner 12791 | -2/Protoforge | Destroyed Executioner 12803 | -2/Protoforge | X0-1V1 activates XOMVISION 12814 | -2/Protoforge | Destroyed Executioner 12838 | -2/Protoforge | Destroyed Executioner 12845 | -2/Protoforge | Found Chaos Jack 12858 | -2/Protoforge | Lost 21 allies 12879 | -2/Protoforge | Destroyed 17 combat bots 12891 | -2/Protoforge | Found 0bPrime Scrap Suit 12942 | -2/Protoforge | Destroyed Executioner 12949 | -2/Protoforge | Spotted Executioner 12953 | -2/Protoforge | Spotted Overlord 12963 | -2/Protoforge | Spotted Executioner 12967 | -2/Protoforge | P-80 Master assimilated allied 62-CIE(E) 12968 | -2/Protoforge | Spotted Executioner 12975 | -2/Protoforge | X0-1V1 turns hostiles against one another 12978 | -2/Protoforge | Spotted Executioner 12982 | -2/Protoforge | Spotted Striker 12982 | -2/Protoforge | Spotted Striker 12982 | -2/Protoforge | Spotted Striker 12982 | -2/Protoforge | Spotted Striker 12988 | -2/Protoforge | Destroyed Striker 12991 | -2/Protoforge | Destroyed Striker 12996 | -2/Protoforge | Lost 22 allies 13008 | -2/Protoforge | Destroyed Striker 13008 | -2/Protoforge | Destroyed Striker 13015 | -2/Protoforge | Destroyed Executioner 13019 | -2/Protoforge | Destroyed Executioner 13040 | -2/Protoforge | Destroyed 11 combat bots 13040 | -2/Protoforge | Spotted Decapitator 13040 | -2/Protoforge | Spotted Decapitator 13040 | -2/Protoforge | Destroyed Decapitator 13044 | -2/Protoforge | Destroyed Decapitator 13055 | -2/Protoforge | Core integrity restored by X0-1V1 (+369) 13058 | -2/Protoforge | Spotted V324-z 13083 | -2/Protoforge | Found Cep. Tactical Fusion Warhead 13089 | -2/Protoforge | Found Cep. Smart ZDS 13111 | -2/Protoforge | Destroyed Decapitator 13111 | -2/Protoforge | Destroyed Decapitator 13121 | -2/Protoforge | Destroyed Decapitator 13152 | -2/Protoforge | Found Cep. Zero-point Core 13162 | -2/Protoforge | X0-1V1 added 0b10 threat records associated with you (major) 13188 | -2/Protoforge | Found Cep. Matter Streamer 13198 | -2/Protoforge | Spotted Immortal 13198 | -2/Protoforge | Spotted Immortal 13199 | -2/Protoforge | Spotted Decapitator 13199 | -2/Protoforge | Spotted Decapitator 13199 | -2/Protoforge | Spotted Decapitator 13199 | -2/Protoforge | Spotted Decapitator 13204 | -2/Protoforge | Destroyed Decapitator 13204 | -2/Protoforge | Destroyed Decapitator 13204 | -2/Protoforge | Destroyed Decapitator 13222 | -2/Protoforge | Destroyed Decapitator 13247 | -2/Protoforge | Destroyed Immortal 13262 | -2/Protoforge | Destroyed Immortal 13269 | -2/Protoforge | Found Prototype Device 13269 | -2/Protoforge | Identified Cep. Antimissile System 13275 | -2/Protoforge | X0-1V1 mutated your Propulsion slot to Utility slot 13336 | -2/Protoforge | Found Cep. Melee Reflex Suite 13340 | -2/Protoforge | Found Cep. Recoil Nullifier 13343 | -2/Protoforge | Found Cep. Recoil Nullifier 13387 | -2/Protoforge | X0-1V1 whisked you away to safety 13403 | -2/Protoforge | X0-1V1 added 0b10 threat records associated with you (considerable) 13407 | -2/Protoforge | Found Exp. Remote Shield 13414 | -2/Protoforge | Lost 3 parts (1n1u1w) 13415 | -2/Protoforge | Found Exp. Force Field 13416 | -2/Protoforge | Found Cep. RG22 Armor 13554 | -2/Protoforge | Spotted Executioner 13560 | -2/Protoforge | Spotted Executioner 13599 | -2/Protoforge | Found Corrupted 0bPrime Scrap Suit 13612 | -2/Protoforge | Spotted Striker 13612 | -2/Protoforge | Destroyed Striker 13654 | -2/Protoforge | Lost 6 allies 13654 | -2/Protoforge | Spotted Striker 13665 | -2/Protoforge | Spotted Executioner 13668 | -2/Protoforge | Destroyed Executioner 13687 | -2/Protoforge | Found 0bPrime Scrap Suit 13697 | -2/Protoforge | Found 0bPrime Scrap Suit 13698 | -2/Protoforge | Destroyed 7 combat bots 13699 | -2/Protoforge | Spotted Executioner 13703 | -2/Protoforge | Destroyed Executioner 13704 | -2/Protoforge | Destroyed Executioner 13706 | -2/Protoforge | Lost 6 allies 13770 | -2/Protoforge | Destroyed 13 combat bots 13790 | -2/Protoforge | Spotted Executioner 13790 | -2/Protoforge | Weapon slot count temporarily expanded by X0-1V1 (+2) 13794 | -2/Protoforge | Destroyed Executioner 13809 | -2/Protoforge | X0-1V1 mutated your Propulsion slot to Utility slot 13825 | -2/Protoforge | Spotted Executioner 13825 | -2/Protoforge | UFD reported confirmed Drillbomb installation 13825 | -2/Protoforge | Spotted Executioner 13825 | -2/Protoforge | Spotted Executioner 13825 | -2/Protoforge | Spotted Executioner 13830 | -2/Protoforge | Destroyed Executioner 13830 | -2/Protoforge | Destroyed Executioner 13836 | -2/Protoforge | Destroyed Executioner 13838 | -2/Protoforge | Entered Access 13838 | -1/Access | Evolved 1 slot: Propulsion x1 13857 | -1/Access | Destroyed 9 combat bots 13860 | -1/Access | Spotted Striker 13860 | -1/Access | Spotted Striker 13860 | -1/Access | Spotted Striker 13869 | -1/Access | Lost 6 parts (1p1u4w) 13894 | -1/Access | Destroyed Striker 13905 | -1/Access | Destroyed Striker 13908 | -1/Access | High security lockdown imminent 13957 | -1/Access | Spotted Striker 13957 | -1/Access | X0-1V1 sent you into danger 13988 | -1/Access | High security lockdown engaged 13991 | -1/Access | Destroyed Striker 14011 | -1/Access | Lost 5 parts (3u2w) 14023 | -1/Access | Warped through subspace 14028 | -1/Access | Spotted Striker 14072 | -1/Access | Destroyed 8 combat bots 14123 | -1/Access | X0-1V1 mutated your Utility slot to Propulsion slot 14132 | -1/Access | Spotted Striker 14132 | -1/Access | Spotted Striker 14142 | -1/Access | Destroyed Striker 14145 | -1/Access | Destroyed Striker 14179 | -1/Access | Spotted B-99 Colossus 14183 | -1/Access | Identified exit to Surface 14183 | -1/Access | X0-1V1 revealed exit location to -0/Surface 14185 | -1/Access | X0-1V1 enhanced Transport squad support 14188 | -1/Access | X0-1V1 destroyed Energy Cycler 14188 | -1/Access | Energy Cycler disabled 14190 | -1/Access | X0-1V1 sent you to a vault 14199 | *** | Escaped! Last Messages --------------- B-74 Champion form shifts and blurs. Y-72 Warden form shifts and blurs. 14183_ X0-1V1: "I guarantee there's even more fun over that way." 14183_ EXIT=REVEALED: SURFACE 14184_ LU-1G1's Laser Shovel disintegrates Wall. 14184_ LU-1G1's Laser Shovel disintegrates Earth. 14185_ X0-1V1: "ALERT: Updating transport protocols with improved security requirements." 14185_ X0-1V1 sends the all clear message. (reinforcement recalled) 14186_ LU-1G1's Laser Shovel disintegrates Wall. 14187_ LU-1G1's Laser Shovel disintegrates Earth. 14188_ X0-1V1: "Open sesame." 14188_ ALERT: Power surge detected, dispatching additional patrols. 14188_ LU-1G1's Laser Shovel disintegrates Earth. 14188_ LU-1G1's Laser Shovel disintegrates Wall. 14190_ I1IJSFEMBIJDY WEITSYZLHYC>9OOK0 14190_ X0-1V1: "Being a leader is both a boon and a curse." 14193_ W-44 Eye sends out distress signal. 14196_ W-44 Eye destroyed. 14197_ The Access Shell folds into the floor. Map ----- +----------------------------------------------------+ | ?????????????????????????????????????????????????? | | ?????????????????????????????????????????????????? | | ?????????????????????????????????????????????????? | | ?????????????????????????????????????????????????? | | ?????????????????????????????????????????????????? | | ?????????????????????????????????????????????????? | | ?????????????????????????????????????????????????? | | ?????????????????????????????????????????????????? | | ?????????????????????????????????????????????????? | | ?????????????????????????????????????????????????? | | ?????????????????????????????????????????????????? | | ?????????????????????????????????????????????????? | | ?????????????????????????????????????????????????? | | ??????????# ?????????????????????????????????????? | | ??????????# ????????????????????????????????????? | | ??????????# ????????????????????????????????????? | | ??????????# ????????????????????????????????????? | | ??????????# ????????????????????????????????????? | | ??????????# #?????###???????????????????????????? | | ??????????# ####### ##########??????????????????? | | ??????????# """T""" "??????????????????? | | ??????????# """ """ "??????????????????? | | ??????????# "??????????????????? | | ??????????# "??????????????????? | | ??????????# "" "??????????????????? | | ??????????# @" "??????????????????? | | ??????????# "??????????????????? | | ??????????# "??????????????????? | | ??????????# "??????????????????? | | ??????????# = "??????????????????? | | ??????????#*%####### ##########??????????????????? | | ??????????# #?????###???????????????????????????? | | ??????????# #??????????##???????????????????????? | | ??????????# #???????? ???????????????????????? | | ??????????# #?????? #??????????????????????? | | ????????# #???? #??????????????????????? | | ##### #?? #??????????????????????? | | # #??????????????????????? | | + #??????????????????????? | | +##########+## "" / ?????????????????????? | | #??? "" ??????????????????????????? | | #?????"""" ??????????????????????????? | | #???????"????????????????????????????? | | #????????????????????????????????????? | | #????????????????????????????????????? | | #############????????????????????????????????????? | | ?????????????????????????????????????????????????? | | ?????????????????????????????????????????????????? | | ?????????????????????????????????????????????????? | | ?????????????????????????????????????????????????? | +----------------------------------------------------+ Best States ------------- Heat Dissipation 165 Coolant Potential 120 Energy Generation 56 Energy Capacity 1700 Matter Stores 1000 Matter Capacity 1000 Sight Range 23 Terrain Scan Density 210 Jamming Range 22 Cloak Strength 2 Power Amplification 30 Additional Mass Support 9 EM Shielding 3 Corruption Block 15 Armor Coverage 400 Resistance: KI 22 Resistance: TH 25 Propulsion Shielding 33 Point Defense Rating 480 Phase Shifting 10 Evasion (%) 86 Targeting Accuracy 8 Launcher Accuracy 20 Target Analysis 10 Core Analysis 15 Armor Integrity Analysis 30 Recoil Reduction 99 Offensive Hacking 24 Defensive Hacking 14 Item Schematics ----------------- Flight Unit | -9/Materials | Hacked Lgt. Assault Rifle | -9/Materials | Hacked Imp. VTOL Module | -8/Materials | Scanalyzed Surge Thruster | -8/Materials | Scanalyzed Imp. Datajack | -8/Materials | Scanalyzed Assault Drone Bay | -4/Zhirov | Free Exp. Heat Sink | -4/Zhirov | Free Exp. Optical Array | -4/Zhirov | Free Imp. Arc Thrower | -4/Zhirov | Free Lgt. Antimatter Cannon | -2/Protoforge | Archive Exp. Energy Well | -2/Protoforge | Archive Adv. Gravity Neutralizer | -2/Protoforge | Archive Com. Mass Driver | -2/Protoforge | Archive Nanosword | -2/Protoforge | Archive Adv. Dynamic Insulation System | -2/Protoforge | Archive Centrium Heavy Armor Plating | -2/Protoforge | Archive Robot Schematics ------------------ G-73 Enforcer | -2/Protoforge | Archive Fabricated ------------ Lgt. Quantum Reactor | x2 | -3/Research | Preloaded Repaired ---------- Lgt. Nuclear Core | 20% | -8/Materials Studied --------- Lgt. Ion Engine | -9/Materials | Hacked Autogun | -9/Materials | Hacked Datajack | -9/Materials | Hacked Flight Unit | -8/Materials | Hacked Lgt. Nuclear Core | -8/Materials | Hacked Rocket Launcher | -8/Materials | Hacked Surge Thruster | -8/Materials | Hacked Gauss Rifle | -7/Factory | Hacked Mic. Fission Core | -5/Factory | Hacked Xenon Bombardment Thruster | -3/Research | Hacked Hvy. Machine Gun | -3/Quarantine | Hacked Impulse Thruster Array | -3/Quarantine | Hacked Mic. Antimatter Reactor | -2/Research | Hacked Alien Tech Used ----------------- Integrated Reactor Core Cannon Transdimensional Reconstructor Subatomic Replicator Achievements -------------- Like A Rock Challenges ------------ None Game ------ Seed ChaosAnalysisMatrix Manual? 0 Play Time 07:06:48 Cumulative 1503.4 hours Start 2026.06.28 @ 15:52:17 End 2026.06.30 @ 23:24:45 Sessions 9 Manual Loads 0 Difficulty Rogue Special Mode None Game No. 669 Rogue 669 Adventurer 0 Explorer 0 Win Type 0 Total 31 Types 15/6/3/0/1/1/2/2/0/1 Lore% 93 Gallery% 87 Achievement% 75 Wizard Run 0 Options --------- Layout 0 ASCII 0 Keyboard 0 Movement Numpad Keybinds 0 Fullscreen 2 Font 24/Smallcaps Map View 76x50 Zoom Use 0% Tactical HUD 1 Map Filters NONE Filters NONE Steam 1 RUN: 4e788f49-8313-4976-aacc-a2e8a60938ae